Workbook

Sheet Introduction

Sheet 60 Deg Inch Thread Data
A1: Basic Dimensions for 60 Degree Unified Threads
A2: Does not take into account thread classes- use published tables for standard threads!
A3: Warning- Initial thread data is used throughout worksheet page- enter accurate numbers! | K3: Converter: | L3: 16 | M3: mm | N3: =L3/25.4 -> 0.6299212598 | O3: in
L4: 1 | M4: mm | N4: =1/(L4/25.4) -> 25.4 | O4: tpi
A5: Nominal Size | C5: 1.53543 | D5: in | E5: 25.4 | F5: tpi | G5: 60 | H5: deg | I5: any ang?
A6: Pitch | E6: =1/E5 -> 0.03937007874 | F6: in | G6: =E6*25.4 -> 1 | H6: mm
A7: Height of sharp V | E7: =E6/(2*TAN(RADIANS(G5/2))) -> 0.03409548834 | F7: in | G7: =E7*25.4 -> 0.8660254038 | H7: mm
A9: male thread- maximum material condition
A10: Basic major diameter | C10: =C5 -> 1.53543 | D10: in | G10: =C10*25.4 -> 38.999922 | H10: mm
A11: Minor diameter | C11: =C10-(2*0.625*E7) -> 1.49281064 | D11: in | G11: =C11*25.4 -> 37.91739025 | H11: mm
A12: Pitch diameter | C12: =C10-(2*0.375*E7) -> 1.509858384 | D12: in | G12: =C12*25.4 -> 38.35040295 | H12: mm
A13: Lead angle | C13: =DEGREES(ATAN(E6/(PI()*C12))) -> 0.4755463533 | D13: degrees
A14: Width of top flat | C14: =0.125*E6 -> 0.004921259843 | D14: in | G14: =C14*25.4 -> 0.125 | H14: mm
A15: Plunge depth | C15: =0.875*E7 -> 0.0298335523 | D15: in | G15: =C15*25.4 -> 0.7577722283 | H15: mm
A16: Thread depth | C16: =0.625*E7 -> 0.02130968021 | D16: in | G16: =C16*25.4 -> 0.5412658774 | H16: mm
A17: 30 deg SP Plunge | C17: =E6-(0.125*E6) -> 0.0344488189 | D17: in
A18: 30 deg Trunc Plunge | C18: =0.625*E6 -> 0.02460629921 | D18: in
A20: single point cutting tool geometry (Machinery's 23, pg 1670)
A21: Nose flat width (60) | C21: =0.25*E6 -> 0.009842519685 | D21: in | E21: this is the absolute maximum!
A22: t | C22: =DEGREES(ATAN(E6/(PI()*C11))) -> 0.4809767901 | D22: deg | E22: helix angle of thread at minor diameter
A23: t prime | C23: =DEGREES(ATAN(E6/(PI()*C10))) -> 0.467626784 | D23: deg | E23: helix angle of thread at major diameter
A24: eff. relief angle | C24: 7 | D24: deg | E24: relief- choose wisely
A25: a | C25: =C24+C22 -> 7.48097679 | D25: deg
A26: a prime | C26: =C24-C23 -> 6.532373216 | D26: deg
A27: b | C27: =DEGREES(ATAN(TAN(RADIANS(C25))*COS(RADIANS(0.5*G5)))) -> 6.487912083 | D27: deg
A28: b prime | C28: =DEGREES(ATAN(TAN(RADIANS(C26))*COS(RADIANS(0.5*G5)))) -> 5.663325119 | D28: deg
A29: n | C29: =DEGREES(ATAN((TAN(RADIANS(C25))-TAN(RADIANS(C26)))/(2*TAN(RADIANS(0.5*G5))))) -> 0.8338848888 | D29: deg
A31: female thread (nut)
A32: The pitch diameter of the nut must be equal to or larger than the pitch diameter of the male thread, depending on class.
A33: The minor diameter of the nut must be equal to or larger than the minor diameter of the male thread.
A34: For very small/fine threads, the minor diameter (drill size) should be determined by examination of the tap.
A36: Suggested minor diameter for normal fits | E36: =C11+(C5*H36) -> 1.49741693 | F36: in | G36: based on | H36: 0.003 | I36: in/in allowance
A38: standard 3-wire method of measurement- no lead angle compensation
A39: Best wire size | C39: =0.57735/E5 -> 0.02273031496 | D39: in
A40: Actual wire size | C40: 0.018 | D40: in
A41: Measurement | C41: 0.6384 | D41: in | E41: Max. mtl. | F41: =C12+((3*C40)-(0.86603/E5)) -> 1.529762714 | G41: in
A42: Pitch diameter | C42: =C41-((3*C40)-(COS(RADIANS(G5/2))/E5)) -> 0.6184954883 | D42: in
A43: Difference | C43: =C42-C12 -> -0.8913628954 | D43: in | E43: PD exceeds maximum material condition if this is positive!
A45: correction for top rake angle on tool
A47: Rake angle | C47: 8 | D47: deg
A48: New tool angle | C48: =DEGREES(2*ATAN(0.5/(0.5/(TAN(RADIANS(G5/2))*COS(RADIANS(C47)))))) -> 59.5159306 | D48: deg

Sheet 55 Deg Whitworth Thread
A1: Basic Dimensions for 55 Degree Whitworth (BSW) Threads
A2: Does not take into account thread classes- use published tables for standard threads!
A3: Warning- Initial thread data is used throughout worksheet page- enter accurate numbers! | K3: Converter: | L3: 16 | M3: mm | N3: =L3/25.4 -> 0.6299212598 | O3: in
L4: 1 | M4: mm | N4: =1/(L4/25.4) -> 25.4 | O4: tpi
A5: Nominal Size | C5: 1.5354 | D5: in | E5: 26 | F5: tpi | G5: 55 | H5: deg
A6: Pitch (P) | E6: =1/E5 -> 0.03846153846 | F6: in | G6: =E6*25.4 -> 0.9769230769 | H6: mm
A7: Height of sharp V (H) | E7: =E6/(2*TAN(RADIANS(G5/2))) -> 0.03694196398 | F7: in | G7: =E7*25.4 -> 0.9383258851 | H7: mm
A9: male thread- maximum material condition
A10: Basic major diameter | C10: =C5 -> 1.5354 | D10: in | G10: =C10*25.4 -> 38.99916 | H10: mm
A11: Minor diameter | C11: =C10-(2*C15) -> 1.486144048 | D11: in | G11: =C11*25.4 -> 37.74805882 | H11: mm
A12: Pitch diameter | C12: =C5-C15 -> 1.510772024 | D12: in | G12: =C12*25.4 -> 38.37360941 | H12: mm
A13: Arc height (e) | C13: =(E7*SIN(RADIANS(G5/2)))/6 -> 0.00284298344 | D13: in | G13: =C13*25.4 -> 0.07221177937 | H13: mm
A14: Radius (r) | C14: =C13/(1-SIN(RADIANS(G5/2))) -> 0.005281887812 | D14: in | G14: 0.1341599504 | H14: mm
A15: Height of thread | C15: =E6/(3*TAN(RADIANS(G5/2))) -> 0.02462797599 | D15: in | G15: 0.6255505901 | H15: mm
A16: Height of straight flank | C16: =C15-(2*C13) -> 0.01894200911 | D16: in | G16: 0.4811270313 | H16: mm
A17: Lead angle | C17: =DEGREES(ATAN(E6/(PI()*(C12)))) -> 0.464291755 | D17: degrees
A19: female thread (nut)
A20: The pitch diameter of the nut must be equal to or larger than the pitch diameter of the male thread, depending on class.
A21: The minor diameter of the nut must be equal to or larger than the minor diameter of the male thread.
A22: For very small/fine threads, the minor diameter (drill size) should be determined by examination of the tap.
A24: Suggested minor diameter for normal fits | E24: =C11+(C5*H24) -> 1.490750248 | F24: in | G24: based on | H24: 0.003 | I24: in/in allowance
A26: standard 3-wire method of measurement- no lead angle compensation
A27: Best wire size | C27: =0.56369*E6 -> 0.02168038462 | D27: in | E27: This is only for 55 degree threads.
A28: Actual wire size | C28: 0.56369 | D28: in
A29: Measurement | C29: 10.18364 | D29: in | E29: Max. matl. | F29: =C5-(1.60082/E5)+(3.16568*C28) -> 3.258292159 | G29: in
A30: Pitch diameter | C30: =C29-(3.16568*C28-0.96049)/E5 -> 10.15194876 | D30: in
A31: Difference | C31: =C30-C12 -> 8.641176739 | D31: in | E31: PD exceeds maximum material condition if this is positive!
A33: correction for top rake angle on tool
A35: Rake angle | C35: 0 | D35: deg
A36: New tool angle | C36: =DEGREES(2*ATAN(0.5/(0.5/(TAN(RADIANS(G5/2))*COS(RADIANS(C35)))))) -> 55 | D36: deg

Sheet 60 Deg ISO Metric Thread
A1: Basic Dimensions for 60 Degree ISO Metric Threads
A3: Warning- Initial thread data is used throughout spreadsheet- enter accurate numbers! | K3: Reverse Calculator using PD (MMC)
A5: Nominal Size | C5: 12 | D5: mm | F5: angle | G5: 60 | H5: deg | K5: Pitch diameter | M5: 2.19762 | N5: mm
A6: Pitch | C6: 0.5 | D6: mm | K6: Pitch | M6: 0.25 | N6: mm
A7: Height of sharp V | C7: =(SQRT(3)/2)*C6 -> 0.4330127019 | D7: mm
K8: Height of sharp V | M8: =(SQRT(3)/2)*M6 -> 0.2165063509
A9: male thread- maximum material condition | K9: Basic major diameter | M9: =M5 + 0.75 * M8 -> 2.359999763 | N9: mm
A10: Basic major diameter | C10: =C5 -> 12 | D10: mm | K10: Minor diameter | M10: =M5 - M8/2 -> 2.089366825 | N10: mm
A11: Pitch diameter | C11: =C10-(2*0.375*C7) -> 11.67524047 | D11: mm
A12: Minor diameter | C12: =C10-(2*0.625*C7) -> 11.45873412 | D12: mm
A13: Lead angle | C13: =DEGREES(ATAN(C6/(PI()*(C11)))) -> 0.7809981957 | D13: degrees
A14: Width of top flat | C14: =C6/8 -> 0.0625 | D14: mm
A15: Width of root | C15: =C6/4 -> 0.125 | D15: mm
A16: Plunge depth | C16: =0.875*C7 -> 0.3788861142 | D16: mm
A17: Thread depth | C17: =0.625*C7 -> 0.2706329387 | D17: mm
A18: 30 deg SP Plunge | C18: =C6-(0.125*C6) -> 0.4375 | D18: mm
A19: 30 deg Trunc Plunge | C19: =0.625*C6 -> 0.3125 | D19: mm
A21: single point cutting tool geometry (Machinery's 23, pg 1670)
A22: Nose flat width (60) | C22: =0.25*C6 -> 0.125 | D22: mm | E22: this is the absolute maximum!
A23: t | C23: =DEGREES(ATAN(C6/(PI()*C12))) -> 0.7957528384 | D23: deg | E23: helix angle of thread at minor diameter
A24: t prime | C24: =DEGREES(ATAN(C6/(PI()*C10))) -> 0.7598643248 | D24: deg | E24: helix angle of thread at major diameter
A25: eff. relief angle | C25: 7 | D25: deg | E25: relief- choose wisely
A26: a | C26: =C25+C23 -> 7.795752838 | D26: deg
A27: a prime | C27: =C25-C24 -> 6.240135675 | D27: deg
A28: b | C28: =DEGREES(ATAN(TAN(RADIANS(C26))*COS(RADIANS(0.5*G5)))) -> 6.761725724 | D28: deg
A29: b prime | C29: =DEGREES(ATAN(TAN(RADIANS(C27))*COS(RADIANS(0.5*G5)))) -> 5.409454613 | D29: deg
A30: n | C30: =DEGREES(ATAN((TAN(RADIANS(C26))-TAN(RADIANS(C27)))/(2*TAN(RADIANS(0.5*G5))))) -> 1.367447952 | D30: deg
A32: female thread (nut)
A33: The pitch diameter of the nut must be equal to or larger than the pitch diameter of the male thread, depending on class.
A34: The minor diameter of the nut must be equal to or larger than the minor diameter of the male thread.
A35: For very small/fine threads, the minor diameter (drill size) should be determined by examination of the tap.
A37: Suggested minor diameter for normal fits | E37: =C12+(C5*H37) -> 11.49473412 | F37: mm | G37: based on | H37: 0.003 | I37: mm/mm allowance
A39: Tap drill size | E39: =C5-C6 -> 11.5 | F39: mm | G39: or | H39: =E39/25.4 -> 0.4527559055 | I39: in
A41: Standard 3-wire method of measurement- no lead angle compensation
A42: Best wire size | C42: =0.57735*C6 -> 0.288675 | D42: mm
A45: Fundamental Deviations & Tolerances by Formulas
B47: Nut Thread, D2, D1 | D47: Bolt Thread, d1, d2
B48: G | C48: H | D48: e | E48: g | F48: h | H48: Diameter Ranges | L48: Bolt PD Tolerance Grades for Mean Diameter entered at left, um | T48: Nut PD Tolerance Grades
A49: pitch | B49: EI | C49: EI | D49: es | E49: es | F49: es | H49: over | I49: to & inc | J49: mean | L49: 3 | M49: 4 | N49: 5 | O49: 6 | P49: 7 | Q49: 8 | R49: 9 | T49: 4 | U49: 5 | V49: 6 | W49: 7 | X49: 8
A50: 0.2 | B50: =+(15 + 11*A50) -> 17.2 | C50: =0 -> 0 | E50: =-(15 + 11*A50) -> -17.2 | F50: =0 -> 0 | H50: 0.99 | I50: 1.4 | J50: =SQRT(H50*I50) -> 1.177285012 | L50: =0.5*O50 -> 31.15998844 | M50: =0.63*O50 -> 39.26158544 | N50: =0.8*O50 -> 49.85598151 | O50: =90*A50^0.4*$J$60^0.1 -> 62.31997689 | P50: =1.25*O50 -> 77.89997111 | Q50: =1.6*O50 -> 99.71196302 | R50: =2*O50 -> 124.6399538 | T50: =0.85*O50 -> 52.97198035 | U50: =1.06*O50 -> 66.0591755 | V50: =1.32*O50 -> 82.26236949 | W50: =1.7*O50 -> 105.9439607 | X50: =2.12*O50 -> 132.118351
A51: 0.25 | B51: =+(15 + 11*A51) -> 17.75 | C51: =0 -> 0 | E51: =-(15 + 11*A51) -> -17.75 | F51: =0 -> 0 | H51: 1.4 | I51: 2.8 | J51: =SQRT(H51*I51) -> 1.979898987 | L51: =0.5*O51 -> 34.06914959 | M51: =0.63*O51 -> 42.92712848 | N51: =0.8*O51 -> 54.51063934 | O51: =90*A51^0.4*$J$60^0.1 -> 68.13829918 | P51: =1.25*O51 -> 85.17287397 | Q51: =1.6*O51 -> 109.0212787 | R51: =2*O51 -> 136.2765984 | T51: =0.85*O51 -> 57.9175543 | U51: =1.06*O51 -> 72.22659713 | V51: =1.32*O51 -> 89.94255491 | W51: =1.7*O51 -> 115.8351086 | X51: =2.12*O51 -> 144.4531943
A52: 0.3 | B52: 18.3 | C52: =0 -> 0 | E52: -18.3 | F52: =0 -> 0 | H52: 2.8 | I52: 5.6 | J52: 3.959797975 | L52: 36.64660875 | M52: 46.17472702 | N52: 58.634574 | O52: 73.2932175 | P52: 91.61652187 | Q52: 117.269148 | R52: 146.586435 | T52: 62.29923487 | U52: 77.69081055 | V52: 96.7470471 | W52: 124.5984697 | X52: 155.3816211
A53: 0.35 | B53: 18.85 | C53: =0 -> 0 | E53: -18.85 | F53: =0 -> 0 | H53: 5.6 | I53: 11.2 | J53: 7.919595949 | L53: 38.97736782 | M53: 49.11148345 | N53: 62.36378851 | O53: 77.95473563 | P53: 97.44341954 | Q53: 124.727577 | R53: 155.9094713 | T53: 66.26152529 | U53: 82.63201977 | V53: 102.900251 | W53: 132.5230506 | X53: 165.2640395
A54: 0.4 | B54: 19.4 | C54: =0 -> 0 | E54: -19.4 | F54: =0 -> 0 | H54: 11.2 | I54: 22.4 | J54: 15.8391919 | L54: 41.11585125 | M54: 51.80597257 | N54: 65.785362 | O54: 82.2317025 | P54: 102.7896281 | Q54: 131.570724 | R54: 164.463405 | T54: 69.89694712 | U54: 87.16560465 | V54: 108.5458473 | W54: 139.7938942 | X54: 174.3312093
A55: 0.45 | B55: 19.95 | C55: =0 -> 0 | E55: -19.95 | F55: =0 -> 0 | H55: 22.4 | I55: 45 | J55: 31.74901573 | L55: 43.0993078 | M55: 54.30512782 | N55: 68.95889248 | O55: 86.19861559 | P55: 107.7482695 | Q55: 137.917785 | R55: 172.3972312 | T55: 73.26882326 | U55: 91.37053253 | V55: 113.7821726 | W55: 146.5376465 | X55: 182.7410651
A56: 0.5 | B56: 20.5 | C56: =0 -> 0 | D56: =-(50 + 11*A56) -> -55.5 | E56: -20.5 | F56: =0 -> 0 | H56: 45 | I56: 90 | J56: 63.63961031 | L56: 44.95451239 | M56: 56.64268562 | N56: 71.92721983 | O56: 89.90902479 | P56: 112.386281 | Q56: 143.8544397 | R56: 179.8180496 | T56: 76.42267107 | U56: 95.30356628 | V56: 118.6799127 | W56: 152.8453421 | X56: 190.6071326
A57: 0.6 | B57: 21.6 | C57: =0 -> 0 | D57: =-(50 + 11*A57) -> -56.6 | E57: -21.6 | F57: =0 -> 0 | H57: 90 | I57: 180 | J57: 127.2792206 | L57: 48.35549015 | M57: 60.92791759 | N57: 77.36878424 | O57: 96.7109803 | P57: 120.8887254 | Q57: 154.7375685 | R57: 193.4219606 | T57: 82.20433325 | U57: 102.5136391 | V57: 127.658494 | W57: 164.4086665 | X57: 205.0272782
A58: 0.7 | B58: 22.7 | C58: =0 -> 0 | D58: -57.7 | E58: -22.7 | F58: =0 -> 0 | H58: 180 | I58: 355 | J58: 252.7844932 | L58: 51.43094517 | M58: 64.80299092 | N58: 82.28951228 | O58: 102.8618903 | P58: 128.5773629 | Q58: 164.5790246 | R58: 205.7237807 | T58: 87.4326068 | U58: 109.0336038 | V58: 135.7776953 | W58: 174.8652136 | X58: 218.0672075
A59: 0.75 | B59: 23.25 | C59: =0 -> 0 | D59: -58.25 | E59: -23.25 | F59: =0 -> 0 | L59: 52.870059 | M59: 66.61627433 | N59: 84.59209439 | O59: 105.740118 | P59: 132.1751475 | Q59: 169.1841888 | R59: 211.480236 | T59: 89.87910029 | U59: 112.0845251 | V59: 139.5769557 | W59: 179.7582006 | X59: 224.1690501
A60: 0.8 | B60: 23.8 | C60: =0 -> 0 | D60: -58.8 | E60: -23.8 | F60: =0 -> 0 | H60: Enter mean here: | J60: 15.839 | L60: 54.25269098 | M60: 68.35839064 | N60: 86.80430557 | O60: 108.505382 | P60: 135.6317275 | Q60: 173.6086111 | R60: 217.0107639 | T60: 92.22957467 | U60: 115.0157049 | V60: 143.2271042 | W60: 184.4591493 | X60: 230.0314098
A61: 1 | B61: 26 | C61: =0 -> 0 | D61: -61 | E61: -26 | F61: =0 -> 0 | L61: 59.31783473 | M61: 74.74047176 | N61: 94.90853557 | O61: 118.6356695 | P61: 148.2945868 | Q61: 189.8170711 | R61: 237.2713389 | T61: 100.840319 | U61: 125.7538096 | V61: 156.5990837 | W61: 201.6806381 | X61: 251.5076193
A62: 1.25 | B62: 28.75 | C62: =0 -> 0 | D62: -63.75 | E62: -28.75 | F62: =0 -> 0 | L62: 64.8558708 | M62: 81.71839721 | N62: 103.7693933 | O62: 129.7117416 | P62: 162.139677 | Q62: 207.5387866 | R62: 259.4234832 | T62: 110.2549804 | U62: 137.4944461 | V62: 171.2194989 | W62: 220.5099607 | X62: 274.9888922
A63: 1.5 | B63: 31.5 | C63: =0 -> 0 | D63: -66.5 | E63: -31.5 | F63: =0 -> 0 | L63: 69.76246109 | M63: 87.90070097 | N63: 111.6199377 | O63: 139.5249222 | P63: 174.4061527 | Q63: 223.2398755 | R63: 279.0498443 | T63: 118.5961838 | U63: 147.8964175 | V63: 184.1728973 | W63: 237.1923677 | X63: 295.792835
A64: 1.75 | B64: 34.25 | C64: =0 -> 0 | D64: -69.25 | E64: -34.25 | F64: =0 -> 0 | L64: 74.19941976 | M64: 93.4912689 | N64: 118.7190716 | O64: 148.3988395 | P64: 185.4985494 | Q64: 237.4381432 | R64: 296.7976791 | T64: 126.1390136 | U64: 157.3027699 | V64: 195.8864682 | W64: 252.2780272 | X64: 314.6055398
A65: 2 | B65: 37 | C65: =0 -> 0 | D65: -72 | E65: -37 | F65: =0 -> 0 | L65: 78.27035218 | M65: 98.62064374 | N65: 125.2325635 | O65: 156.5407044 | P65: 195.6758804 | Q65: 250.465127 | R65: 313.0814087 | T65: 133.0595987 | U65: 165.9331466 | V65: 206.6337297 | W65: 266.1191974 | X65: 331.8662932
A66: 2.5 | B66: 42.5 | C66: =0 -> 0 | D66: -77.5 | E66: -42.5 | F66: =0 -> 0 | L66: 85.57783458 | M66: 107.8280716 | N66: 136.9245353 | O66: 171.1556692 | P66: 213.9445865 | Q66: 273.8490707 | R66: 342.3113383 | T66: 145.4823188 | U66: 181.4250093 | V66: 225.9254833 | W66: 290.9646376 | X66: 362.8500186
A67: 3 | B67: 48 | C67: =0 -> 0 | D67: -83 | E67: -48 | F67: =0 -> 0 | L67: 92.05211928 | M67: 115.9856703 | N67: 147.2833908 | O67: 184.1042386 | P67: 230.1302982 | Q67: 294.5667817 | R67: 368.2084771 | T67: 156.4886028 | U67: 195.1504929 | V67: 243.0175949 | W67: 312.9772055 | X67: 390.3009857
A68: 3.5 | B68: 53.5 | C68: =0 -> 0 | D68: -88.5 | E68: -53.5 | F68: =0 -> 0 | L68: 97.90672135 | M68: 123.3624689 | N68: 156.6507542 | O68: 195.8134427 | P68: 244.7668034 | Q68: 313.3015083 | R68: 391.6268854 | T68: 166.4414263 | U68: 207.5622493 | V68: 258.4737444 | W68: 332.8828526 | X68: 415.1244985
A69: 4 | B69: 59 | C69: =0 -> 0 | D69: -94 | E69: -59 | F69: =0 -> 0 | L69: 103.2783489 | M69: 130.1307196 | N69: 165.2453582 | O69: 206.5566977 | P69: 258.1958722 | Q69: 330.4907164 | R69: 413.1133955 | T69: 175.5731931 | U69: 218.9500996 | V69: 272.654841 | W69: 351.1463862 | X69: 437.9001992
A70: 4.5 | B70: 64.5 | C70: =0 -> 0 | D70: -99.5 | E70: -64.5 | F70: =0 -> 0 | L70: 108.2605665 | M70: 136.4083137 | N70: 173.2169063 | O70: 216.5211329 | P70: 270.6514162 | Q70: 346.4338127 | R70: 433.0422659 | T70: 184.042963 | U70: 229.5124009 | V70: 285.8078955 | W70: 368.085926 | X70: 459.0248018
A71: 5 | B71: 70 | C71: =0 -> 0 | D71: -105 | E71: -70 | F71: =0 -> 0 | L71: 112.9206297 | M71: 142.2799934 | N71: 180.6730076 | O71: 225.8412594 | P71: 282.3015743 | Q71: 361.3460151 | R71: 451.6825189 | T71: 191.9650705 | U71: 239.391735 | V71: 298.1104625 | W71: 383.930141 | X71: 478.78347
A72: 5.5 | B72: 75.5 | C72: =0 -> 0 | D72: -110.5 | E72: -75.5 | F72: =0 -> 0 | L72: 117.3087387 | M72: 147.8090108 | N72: 187.693982 | O72: 234.6174775 | P72: 293.2718469 | Q72: 375.387964 | R72: 469.234955 | T72: 199.4248559 | U72: 248.6945261 | V72: 309.6950703 | W72: 398.8497117 | X72: 497.3890523
A73: 6 | B73: 81 | C73: =0 -> 0 | D73: -116 | E73: -81 | F73: =0 -> 0 | L73: 121.4634996 | M73: 153.0440095 | N73: 194.3415993 | O73: 242.9269992 | P73: 303.658749 | Q73: 388.6831987 | R73: 485.8539984 | T73: 206.4879493 | U73: 257.5026191 | V73: 320.6636389 | W73: 412.9758986 | X73: 515.0052383
L75: Bolt Major Diameter Tolerances, um | T75: Nut Minor Diameter Tolerances, um
M76: 4 | O76: 6 | Q76: 8 | T76: 4 | U76: 5 | V76: 6 | W76: 7 | X76: 8
K77: 0.2 | M77: =0.63*O77 -> 34.34477757 | O77: =180*POWER(K77^2, 1/3) - 3.15/SQRT(K77) -> 54.51551995 | Q77: =1.6*O77 -> 87.22483192 | T77: =0.63*V77 -> 37.75639598 | U77: =0.8*V77 -> 47.94462981 | V77: =433*K77 - 190*K77^1.22 -> 59.93078727 | W77: =1.25*V77 -> 74.91348408 | X77: =1.6*V77 -> 95.88925962
K78: 0.25 | M78: =0.63*O78 -> 41.03381982 | O78: =180*POWER(K78^2, 1/3) - 3.15/SQRT(K78) -> 65.13304734 | Q78: =1.6*O78 -> 104.2128757 | T78: =0.63*V78 -> 46.13874684 | U78: =0.8*V78 -> 58.58888487 | V78: =433*K78 - 190*K78^1.22 -> 73.23610609 | W78: =1.25*V78 -> 91.54513261 | X78: =1.6*V78 -> 117.1777697
K79: 0.3 | M79: 47.19594511 | O79: 74.91419858 | Q79: 119.8627177 | T79: 54.28316324 | U79: 68.93100094 | V79: 86.16375117 | W79: 107.704689 | X79: 137.8620019
K80: 0.35 | M80: 52.96503438 | O80: 84.07148315 | Q80: 134.514373 | T80: 62.22148374 | U80: 79.01140792 | V80: 98.76425991 | W80: 123.4553249 | X80: 158.0228158
K81: 0.4 | M81: 58.42522154 | O81: 92.73844688 | Q81: 148.381515 | T81: 69.97721498 | U81: 88.85995553 | V81: 111.0749444 | W81: 138.8436805 | X81: 177.7199111
K82: 0.45 | M82: 63.63358064 | O82: 101.0056836 | Q82: 161.6090937 | T82: 77.56850956 | U82: 98.49969469 | V82: 123.1246184 | W82: 153.9057729 | X82: 196.9993894
K83: 0.5 | M83: 68.63101671 | O83: 108.9381218 | Q83: 174.3009948 | T83: 85.00985863 | U83: 107.9490268 | V83: 134.9362835 | W83: 168.6703544 | X83: 215.8980537
K84: 0.6 | M84: 78.10836166 | O84: 123.9815264 | Q84: 198.3704423 | T84: 99.48824178 | U84: 126.3342753 | V84: 157.9178441 | W84: 197.3973051 | X84: 252.6685505
K85: 0.7 | M85: 87.02962557 | O85: 138.1422628 | Q85: 221.0276205 | T85: 113.4865313 | U85: 144.109881 | V85: 180.1373513 | W85: 225.1716891 | X85: 288.219762
K86: 0.75 | M86: 91.31813429 | O86: 144.9494195 | Q86: 231.9190712 | T86: 120.323296 | U86: 152.791487 | V86: 190.9893587 | W86: 238.7366984 | X86: 305.5829739
K87: 0.8 | M87: 95.50641909 | O87: 151.5974906 | Q87: 242.555985 | T87: 127.0594851 | U87: 161.3453779 | V87: 201.6817224 | W87: 252.102153 | X87: 322.6907558
K88: 1 | M88: 111.4155 | O88: 176.85 | Q88: 282.96 | T88: 144.9 | U88: 184 | V88: =230*K88^0.7 -> 230 | W88: 287.5 | X88: 368
K89: 1.25 | M89: 129.8140527 | O89: 206.0540519 | Q89: 329.686483 | T89: 169.3968751 | U89: 215.107143 | V89: =230*K89^0.7 -> 268.8839287 | W89: 336.1049109 | X89: 430.214286
K90: 1.5 | M90: 146.9756996 | O90: 233.2947612 | Q90: 373.271618 | T90: 192.4563597 | U90: 244.3890281 | V90: 305.4862852 | W90: 381.8578565 | X90: 488.7780563
K91: 1.75 | M91: 163.1789346 | O91: 259.0141818 | Q91: 414.4226909 | T91: 214.385308 | U91: 272.2353118 | V91: 340.2941397 | W91: 425.3676747 | X91: 544.4706236
K92: 2 | M92: 178.6080259 | O92: 283.504803 | Q92: 453.6076848 | T92: 235.3907445 | U92: 298.9088819 | V92: 373.6361023 | W92: 467.0451279 | X92: 597.8177637
K93: 2.5 | M93: 207.629478 | O93: 329.5706 | Q93: 527.3129599 | T93: 275.1860355 | U93: 349.4425847 | V93: 436.8032309 | W93: 546.0040387 | X93: 698.8851695
K94: 3 | M94: 234.7357539 | O94: 372.5964348 | Q94: 596.1542957 | T94: 312.6462787 | U94: 397.0111475 | V94: 496.2639344 | W94: 620.329918 | X94: 794.022295
K95: 3.5 | M95: 260.3509779 | O95: 413.2555205 | Q95: 661.2088327 | T95: 348.2699604 | U95: 442.2475687 | V95: 552.8094609 | W95: 691.0118262 | X95: 884.4951375
K96: 4 | M96: 284.7578441 | O96: 451.996578 | Q96: 723.1945247 | T96: 382.3933925 | U96: 485.5789112 | V96: 606.973639 | W96: 758.7170487 | X96: 971.1578223
K97: 4.5 | M97: 308.1567106 | O97: 489.1376358 | Q97: 782.6202173 | T97: 415.257175 | U97: 527.3106984 | V97: 659.138373 | W97: 823.9229663 | X97: 1054.621397
K98: 5 | M98: 330.6961161 | O98: 524.9144701 | Q98: 839.8631521 | T98: 447.0410335 | U98: 567.6711537 | V98: 709.5889421 | W98: 886.9861777 | X98: 1135.342307
K99: 5.5 | M99: 352.4900445 | O99: 559.5080071 | Q99: 895.2128113 | T99: 477.8837556 | U99: 606.8365151 | V99: 758.5456439 | W99: 948.1820549 | X99: 1213.67303
K100: 6 | M100: 373.6283813 | O100: 593.0609227 | Q100: 948.8974763 | T100: 507.8953781 | U100: 644.9465119 | V100: 806.1831399 | W100: 1007.728925 | X100: 1289.893024

Sheet Trap Metric Thds
A1: 30 Degree Trapezoidal Metric Threads | F1: (or any other angle)
B3: Included angle | E3: 30 | F3: deg
B4: Pitch | E4: 1 | F4: mm | H4: =E4/25.4 -> 0.03937007874 | I4: in
B5: Basic OD | E5: 5.5 | F5: mm | H5: =E5/25.4 -> 0.2165354331 | I5: in
B6: Clearance on crest | E6: 0.075 | F6: mm | H6: 0.002952755906 | I6: in
B8: Thread depth | E8: =(0.5*E4)+E6 -> 0.575 | F8: mm | H8: 0.02263779528 | I8: in
B9: Minor diameter | E9: =E5-(2*E8) -> 4.35 | F9: mm | H9: 0.1712598425 | I9: in
B10: Pitch diameter | E10: =E5-(0.5*E4) -> 5 | F10: mm | H10: 0.1968503937 | I10: in
B11: Width of flat at crest | E11: =2*TAN(RADIANS(E3/2))*((0.25*E4)/TAN(RADIANS(E3/2))-0.25*E4) -> 0.3660254038 | F11: mm | H11: 0.01441044897 | I11: in
B12: Width of flat at root | E12: =2*TAN(RADIANS(E3/2))*((0.25*E4)/TAN(RADIANS(E3/2))-0.25*E4-E6) -> 0.3258330249 | F12: mm | H12: 0.01282807185 | I12: in
B13: Angled feed amount | E13: =E8/(COS(RADIANS(E3/2))) -> 0.5952838037 | F13: mm | H13: 0.02343637023 | I13: in

Sheet 60 Deg from outside
A1: Build-down of thread system from outer wall dimensions
B3: Outside dim of nut (min) | F3: 3.4 | G3: mm
B4: Minimum wall thickness | F4: 0.15 | G4: mm
B5: Max root of nut | F5: =F3-(2*F4) -> 3.1 | G5: mm
B6: Pitch | F6: 0.5 | G6: mm
B7: H | F7: =0.866025*F6 -> 0.4330125 | G7: mm
B8: Max PD of nut | F8: =F5-(0.6495*F6) -> 2.77525 | G8: mm
B9: Max crest of nut (not really) | F9: =F5-(1.0825*F6) -> 2.55875 | G9: mm
B10: PD tolerance range allotted to nut | F10: 0.01 | G10: mm
B11: PD tolerance range allotted to screw | F11: 0.025 | G11: mm
B12: Max PD of screw | F12: =F8-(F10+F11) -> 2.74025 | G12: mm
B13: Min PD of screw | F13: =F12-F11 -> 2.71525 | G13: mm

Sheet 3-Wire Meas
A1: 60 Degree Screw Threads- 3 Wire Method | F1: The Van Keuren Co. Catalog #36 (1955)
F3: metric
A4: TPI (n) | C4: 158.75
A5: Pitch (p) | C5: =1/C4 -> 0.006299212598 | F5: =25.4/C4 -> 0.16
A6: Depth (h) | C6: =0.649519/C4 -> 0.004091458268 | F6: =25.4*C6 -> 0.10392304
A8: Best Wire Size (G) | C8: =0.57735/C4 -> 0.003636850394 | F8: =25.4*C8 -> 0.092376
A10: Actual Wire Size (G) | C10: 0.003631 | F10: =25.4*C10 -> 0.0922274
A12: Nominal Diameter (D) | D12: 0.043461078 | F12: =25.4*D12 -> 1.103911381
A13: Nominal Pitch Diameter (E) | D13: =D12-C6 -> 0.03936961973 | F13: =25.4*D13 -> 0.9999883412
A15: Measurement over wires (M) | D15: 0.044816
A17: Actual Pitch Diameter | D17: =D15-((3*C10)-(0.86603/C4)) -> 0.03937830709 | F17: Based on pg. 151 and neglects effect of lead angle- results .00005" to .00015" larger than true size.
A19: Error in Pitch Diameter | D19: =D17-D13 -> 8.687354331e-06 | F19: =25.4*D19 -> 0.0002206588 | G19: =F19*1000 -> 0.2206588 | H19: um
A21: Buckingham Simplified Formula | F21: Machinery's Handbook 23, pg. 1631
A23: Lead Angle | D23: =DEGREES(ATAN(C5/(PI()*D13))) -> 2.915564974 | F23: This is only true at the pitch diameter.
A24: Best Wire Size (W) | D24: =(0.5*C5*COS(RADIANS(D23)))/(COS(RADIANS(30))) -> 0.003632144462
A25: Actual Wire Size | D25: 0.003631
A26: Measurment over wires (M) | D26: =D13+(D25*(1+SIN(RADIANS(30)))) -> 0.04481611973 | F26: Based on pg. 1631 and includes lead angle if and only if best wire size is used.
A28: Actual Wire Size | D28: 0.003631
A29: PD for new contact points | D29: 0.039378 | F29: Enter approximate PD for undersize wires here.
A30: Lead Angle at new PD | D30: =DEGREES(ATAN(C5/(PI()*D29))) -> 2.914945565 | F30: Lead angle doesn't change much since thread is so shallow.
A32: Dr. Werner F. Vogel Best Approximation Formula- #800 from The Van Keuren Co. Cat. #36
B34: # of starts | D34: 1 | F34: lead angle, λ | H34: =DEGREES(ATAN(H37/(PI()*D35))) -> 2.915531095
B35: pitch dia | D35: 0.039370078 | F35: axial pa, θx | H35: 30
B36: tpi | D36: 158.75 | F36: norm pa, θn | H36: =DEGREES(ATAN(TAN(RADIANS(H35))*COS(RADIANS(H34)))) -> 29.96787596
B37: axial pitch | D37: =1/D36 -> 0.006299212598 | F37: lead | H37: =D34*D37 -> 0.006299212598
B39: sigma | D39: =PI()/(2*D34) -> 1.570796327 | E39: rad
B40: gamma | D40: =D39*SIN(RADIANS(H34))^2 -> 0.004063825854 | E40: rad
B41: Z | D41: 0
B42: tan thetaM | D42: =TAN(RADIANS(H35))/TAN(RADIANS(H34)) -> 11.33624581
B43: CKAMF | D43: =(1/D40)+D40*(SIN(RADIANS(H36))^2-(SIN(RADIANS(H34))^2/3))+D42*COS(RADIANS(H34))^2+D41 -> 257.3814648
B44: tan b800 | D44: =1/D43 -> 0.003885283662
B45: b800 | D45: =DEGREES(ATAN(D44)) -> 0.2226092359 | E45: deg
B46: D to wire ctrs | D46: =D35 * (D39-RADIANS(D45))/SIN(RADIANS(D45)) * TAN(RADIANS(H34))^2 -> 0.04118427302
B47: best wire dia | D47: =D46*SIN(RADIANS(D45))/(SIN(RADIANS(H34))*COS(RADIANS(H36))) -> 0.00363138361
B48: meas over wires | D48: =D46+D47 -> 0.04481565663
B49: backlash | D49: 0.002
B50: ATF | D50: =(1/SIN(RADIANS(D45))) * (1/( TAN(RADIANS(H34)) + TAN(RADIANS(H35)) * (1/TAN(RADIANS(D45))) )) -> 1.731470452
B51: reduction | D51: =D50*D49 -> 0.003462940904
B52: meas over wires | D52: =D48-D51 -> 0.04135271573

Sheet Cutting Speeds
A1: Cutting Speeds
B4: Lathe spindle speed | D4: 425 | E4: RPM | H4: Material | K4: HSS | L4: carbide | M4: cast alloy
B5: Work diameter | D5: 2.5 | E5: in
B6: Surface speed | D6: =(PI()*D5*D4)/12 -> 278.1618495 | E6: SFPM | H6: Steel, tough | K6: 50-60 | M6: 100-120
H7: Steel, mild | K7: 100-125 | M7: 200-250
H8: Steel, alloy | K8: 65-120 | M8: 130-240
H9: Steel, carbon | K9: 70-130 | M9: 140-260
H10: Steel, free cutting | K10: 115-225 | M10: 230-450
H11: Steel, leaded | K11: 300 | M11: 600
H12: Steel, stainless | K12: 75-130 | M12: 150-260
H13: Cast iron | K13: 60-80 | M13: 120-160
H14: Bronzes | K14: 80-150 | M14: 160-300
H15: Brass | K15: 600+ | M15: 1200+
H16: Aluminum | K16: 250-350 | M16: 500-700

Sheet Logan
B2: Logan 11" Lathe Changegears for Figures I, II and III | H2: change things in RED only, formulas in BLUE
B4: Leadscrew | D4: 8 | E4: tpi | G4: =1/D4 -> 0.125 | H4: pitch
B5: Screw Constant | D5: 8 | E5: tpi | G5: Permanent tumbler gears are 1:1 so this equals the leadscrew.
B7: Required Thread | D7: 36 | E7: tpi | G7: =1/D7 -> 0.02777777778 | H7: pitch | I7: =G7*25.4 -> 0.7055555556 | J7: mm metric
B9: Trial Factor | D9: 3 | G9: Choose this for sensible stud gear size.
B11: Transfer 1 | D11: 18 | E11: teeth | G11: For no transfer gears, "figure I", enter same value for each. | N11: figures refer to the chart on the lathe
B12: Transfer 2 | D12: 54 | E12: teeth | G12: 18/54 combination is normal for "figure II".
B13: Transfer Ratio A | D13: =D11/D12 -> 0.3333333333
B15: Transfer 3 | D15: 1 | E15: teeth | G15: This is for "figure III" where the transfers are doubled and
B16: Transfer 4 | D16: 1 | E16: teeth | G16: reversed- use 18/54 here and 24/48 above. For no transfer
B17: Transfer Ratio B | D17: =D15/D16 -> 1 | G17: gears, enter the same value for each, say 1 and 1.
B19: Stud Gear | D19: =D9*D5 -> 24 | E19: teeth | G19: Actual stud gear | J19: 24
B20: Leadscrew Gear | D20: =D9*D7*D13*D17 -> 36 | E20: teeth | G20: Actual leadscrew gear | J20: 36
B22: Available gears | D22: 16 | E22: 48 (2) | F22: 37 | G22: Actual tpi for odd threads | J22: =(1/(D13*D17*(J19/J20)))*D5 -> 36
D23: 18 | E23: 52 | F23: 47 | G23: % error | J23: =100*((J22/D7)-1) -> 0 | K23: %
D24: 24 (2) | E24: 54 | F24: 100
D25: 32 (2) | E25: 56 | G25: Pitch | J25: =1/J22 -> 0.02777777778 | K25: inches
D26: 36 | E26: 60 | G26: Pitch | J26: =J25*25.4 -> 0.7055555556 | K26: mm
D27: 40 | E27: 64
D28: 44 | E28: 68 (diy)
D29: 46 | E29: 72
B31: Threading Dial
C33: If TPI is divisible by 8 thread dial isn't needed- engage anywhere!
C34: If TPI is even use any mark on the thread dial
C35: If TPI is odd use only the numbers
C36: If TPI is a 1/2 TPI like 11.5 use only the same number
C37: If TPI is a 1/4 TPI or metric keep half nuts engaged and reverse spindle
B39: Metric Threading
C40: use 37/47 for approximate or 100/127 for exact.
C41: can also use 63/40 and a factor of two elsewhere but a 40:1 dividing head won't do 63.
B43: Gear Design for Logan
B45: DP | D45: 16 | F45: Logan is typically 16
B46: pressure angle | D46: 14.5 | E46: deg | F46: Logan and most older gears are 14.5 degree pressure angle. (this is used for the measurement across teeth below)
B47: N | D47: 18 | E47: teeth
B48: OD of blank | D48: =(D47+2)/D45 -> 1.25 | E48: in
B49: tooth thickness on pl | D49: =1.5708/D45 -> 0.098175 | E49: in
B50: pitch diameter | D50: =D47/D45 -> 1.125 | E50: in
B51: pitch radius | D51: =D50/2 -> 0.5625 | E51: in
B52: min total depth | D52: =2.157/D45 -> 0.1348125 | E52: in
B54: Measurement across several teeth:
B56: spaces | D56: 4
B57: factor | D57: 0.01109 | F57: use 0.01109 for 14.5, 0.0298 for 20, 0.04303 for 22.5 pressure angles
B58: result | D58: =D51*COS(RADIANS(D46))*((D49/D51)+((2*PI()*D56)/D47)+D57) -> 0.8614686992 | E58: in

Sheet Sherline
A1: Sherline Metric Lathe Change Gears | F1: change only numbers in red, results from formulas are in blue, reference data in purple.
A3: Leadscrew pitch | C3: 1 | D3: mm | F3: Metric version lathe is 1mm | L3: Sherline gears: | N3: 3rd Party gears
L4: 56 pitch | M4: 24 pitch | N4: 56 pitch | O4: 24 pitch
A5: Required thread pitch | C5: 0.75 | D5: mm | F5: =1/(C5/25.4) -> 33.86666667 | G5: tpi | L5: A, B | M5: C, D, E | N5: A, B | O5: C, D, E
L6: 50 | M6: 20 | O6: 16
A7: Ratio multiplier | C7: 100 | F7: Scale factor- typically 50 or 100 for Sherline | L7: 100 | M7: 22 | O7: 25
L8: 127 | M8: 24 | O8: 60
A9: "C" gear | C9: 24 | D9: teeth | M9: 26
A10: "B" gear | C10: 100 | D10: teeth | F10: Usually 100 for Sherline | M10: 28
A11: Transfer ratio | C11: =C9/C10 -> 0.24 | H11: inverse | I11: =1/C11 -> 4.166666667 | M11: 30
M12: 32
A13: "A" spindle gear | C13: =C7*(1/C3) -> 100 | D13: teeth | F13: Actual spindle gear | I13: 100 | J13: teeth | M13: 34
A14: "D" leadscrew gear | C14: =C7*(1/C5)*C11 -> 32 | D14: teeth | F14: Actual leadscrew gear | I14: 32 | J14: teeth | M14: 36
M15: 38
A16: Note that the "E" gear can be anything convenient | F16: Actual pitch | I16: =1/(1/(C11*(I13/I14)))*(1/C3) -> 0.75 | J16: mm | M16: 40
A17: "D" cannot exceed 3" in diameter if "C" is 20t | F17: % error | I17: =100*((I16/C5)-1) -> 0 | J17: %
I20: Ultra fine thread arrangement:
I21: For ultra fine pitches the "E" gear is doubled up to provide reduction,
I22: just like the C/B combination. Extra spacers and bushing will be needed.
I23: This routine calculates the pitch for various gears of your choosing.
I25: A | J25: 50 | K25: teeth | L25: 50 | M25: 50 | N25: 50 | O25: 50
I26: B | J26: 100 | K26: teeth | L26: 100 | M26: 100 | N26: 100 | O26: 100
I27: C | J27: 24 | K27: teeth | L27: 24 | M27: 24 | N27: 24 | O27: 24
I28: D (outboard) | J28: 40 | K28: teeth | L28: 60 | M28: 60 | N28: 60 | O28: 40
I29: E1 (inboard) | J29: 40 | K29: teeth | L29: 40 | M29: 40 | N29: 40 | O29: 40
I30: E2 (outboard) | J30: 34 | K30: teeth | L30: 20 | M30: 24 | N30: 32 | O30: 34
I32: Pitch | J32: =(J25/J28)*(J27/J26)*(J30/J29)*C3 -> 0.255 | K32: mm | L32: 0.1 | M32: 0.12 | N32: 0.16 | O32: 0.255
I33: Leadscrew M | J33: =LCM(J32*100000,C3*100000)/100000 -> 51 | L33: 1 | M33: 3 | N33: 4 | O33: 51
I34: # of threads | J34: =J33/J32 -> 200 | L34: 10 | M34: 25 | N34: 25 | O34: 200
I35: threads/turn | J35: =C3/J32 -> 3.921568627 | L35: 10 | M35: 8.3333 | N35: 6.25 | O35: 3.9216
I37: If you disengage the leadscrew, it may be turned by any multiple of
I38: "Leadscrew M", then re-engaged, to pick up the thread and do multiple
I39: cutting passes.
A41: Gear Design for Sherline
A43: DP | C43: 60 | E43: 59.27
A44: pressure angle | C44: 20 | D44: deg
A45: N | C45: 40 | D45: teeth
A46: OD of blank | C46: =(C45+2)/C43 -> 0.7 | D46: in | E46: =C46*25.4 -> 17.78 | F46: mm
A47: tooth thickness on pl | C47: =1.5708/C43 -> 0.02618 | D47: in | E47: =C47*25.4 -> 0.664972 | F47: mm
A48: pitch diameter | C48: =C45/C43 -> 0.6666666667 | D48: in | E48: =C48*25.4 -> 16.93333333 | F48: mm
A49: pitch radius | C49: =C48/2 -> 0.3333333333 | D49: in | E49: =C49*25.4 -> 8.466666667 | F49: mm
A50: min total depth | C50: =2.157/C43 -> 0.03595 | D50: in | E50: =C50*25.4 -> 0.91313 | F50: mm
A51: english module | C51: =C48/C45 -> 0.01666666667
A53: Measurement across several teeth:
A55: spaces | C55: 2
A56: factor | C56: =inv(RADIANS(C44))*2 -> 0.02980876773 | E56: This factor is 2X INV(pressure angle) from above pressure angle
A57: result | C57: =C49*COS(RADIANS(C44))*((C47/C49)+((2*PI()*C55)/C45)+C56) -> 0.1323425603 | D57: in | E57: (got .2396" for plastic gear that shrunk a bit- better photo is .13424)

Sheet Spur Gears
A1: General Metric Module Spur Gear Design | G1: Note that this worksheet has a vba macro for calculating the involute function and its inverse (INV and IINV).
A8: Standard Metric Gear Module with PD Known | H8: Module Derived from Center to Center Distance
H9: this only works for non-shifted standard gears
A10: N | C10: 10 | D10: teeth | H10: c-c distance | J10: 11.185 | K10: mm
A11: pitch diameter | C11: 5.29082 | D11: mm | H11: N1 | J11: 10 | K11: teeth | L11: PD | M11: =J13*J11 -> 4.474 | N11: mm | O11: OD | P11: =(J11+2)*J13 -> 5.3688 | Q11: mm
A12: module | C12: =C11/C10 -> 0.529082 | D12: mm | E12: =25.4/C12 -> 48.00768123 | F12: DP | H12: N2 | J12: 40 | K12: teeth | L12: PD | M12: =J13*J12 -> 17.896 | N12: mm | O12: OD | P12: =(J12+2)*J13 -> 18.7908 | Q12: mm
H13: module | J13: =(2*J10)/(J11+J12) -> 0.4474 | K13: mm
A14: DP | C14: 48 | E14: =25.4/C14 -> 0.5291666667 | F14: module | H14: DP | J14: =25.4/J13 -> 56.77246312
A16: Standard Metric Gear Design with Module Known | H16: Standard Metric Gear Module with OD Known (risky business!)
A18: N | C18: 10 | D18: teeth | H18: N | I18: 10 | J18: teeth
A19: module | C19: 0.529082 | D19: mm | E19: =25.4/C19 -> 48.00768123 | F19: DP | H19: OD | I19: 6.35 | J19: mm
A20: pressure angle | C20: 20 | D20: deg | H20: module | I20: =I19/(I18+2) -> 0.5291666667 | J20: mm | K20: =25.4/I20 -> 48 | L20: DP
A21: OD | C21: =(C18+2)*C19 -> 6.348984 | D21: mm
A22: pitch diameter | C22: =C19*C18 -> 5.29082 | D22: mm
A23: root diameter | C23: =C22-(2.5*C19) -> 3.968115 | D23: mm
A24: circular pitch | C24: =PI()*C19 -> 1.662160124 | D24: mm | H24: Center to Center Distance for Two Standard Gears
A25: base diameter | C25: =C22*(COS(RADIANS(C20))) -> 4.971744512 | D25: mm
A26: addendum | C26: =C19 -> 0.529082 | D26: mm | H26: N1, N2 | J26: 10 | K26: teeth | M26: 40 | N26: teeth
A27: dedendum | C27: =1.157*C19 -> 0.612147874 | D27: mm | H27: module | L27: 0.5 | M27: mm
A28: working depth | C28: =2*C19 -> 1.058164 | D28: mm | E28: ` | H28: c-c distance | L28: =((J26*L27)+(M26*L27))/2 -> 12.5 | M28: mm
A29: total tooth depth | C29: =2.157*C19 -> 1.141229874 | D29: mm
A30: tooth width at PD | C30: =1.5708*C19 -> 0.8310820056 | D30: mm
A32: Profile Shifted Spur Gears | J32: Inverse Formulas for Routine at Left
A33: enter shift coefficients from right, or zero | J33: use this to determine shift coefficients
C34: pinion | E34: gear | L34: pinion | N34: gear
A35: module | D35: 0.4305 | H35: =25.4/D35 -> 59.00116144 | I35: DP | J35: c-c distance | M35: 11.185 | O35: mm
A36: N1, N2 | C36: 10 | E36: 40 | F36: teeth | J36: c-c mod coefficient | M36: =(M35/D35)-((C36+E36)/2) -> 0.981416957
A37: pressure angle | D37: 15 | F37: deg | J37: working press angle | M37: =ACOS(COS(RADIANS(D37)) / (((2*M36)/(C36+E36))+1)) -> 0.3779064694 | O37: rad | P37: =DEGREES(M37) -> 21.65244575 | Q37: deg
A38: shift coefficients | C38: 0 | E38: 0 | J38: sum of shift coefficients | M38: =((C36+E36)*(inv(M37)-inv(RADIANS(D37)))) / (2*TAN(RADIANS(D37))) -> 1.206474937
A39: involute a working | D39: =2*TAN(RADIANS(D37)) * ((C38+E38) / (C36+E36)) +inv(RADIANS(D37)) -> 0.006149804632 | J39: shift coefficients | L39: 0.6 | N39: =M38-L39 -> 0.6064749368
A40: working press angle | D40: =IINV(D39) -> 0.2617993878 | F40: rad | H40: =DEGREES(D40) -> 15 | I40: deg
A41: c-c mod coefficient | D41: =(C36+E36)/2 * ((COS(RADIANS(D37))/COS(D40))-1) -> 5.551115123e-15
A42: c-c distance calc | D42: =(((C36+E36)/2)+D41)*D35 -> 10.7625 | F42: mm
A43: reference dia | C43: =C36*D35 -> 4.305 | E43: =E36*D35 -> 17.22 | F43: mm
A44: base dia | C44: =C43*COS(RADIANS(D37)) -> 4.158310682 | E44: =E43*COS(RADIANS(D37)) -> 16.63324273 | F44: mm
A45: working pitch dia | C45: =C44/COS(D40) -> 4.305 | E45: =E44/COS(D40) -> 17.22 | F45: mm
A46: addendum | C46: =(1+D41-E38)*D35 -> 0.4305 | E46: =(1+D41-C38)*D35 -> 0.4305 | F46: mm
A47: tooth depth | D47: =ABS(2.25+D41-(C38+E38))*D35 -> 0.968625 | F47: mm
A48: tip dia | C48: =C43+2*C46 -> 5.166 | E48: =E43+2*E46 -> 18.081 | F48: mm
A49: root dia | C49: =C48-2*D47 -> 3.22875 | E49: =E48-2*D47 -> 16.14375 | F49: mm
A51: Measurement Over N Spaces
A52: may only be good for non-shifted gears
A53: module | D53: 0.4305 | E53: mm | F53: =25.4/D53 -> 59.00116144 | G53: DP
A54: N | D54: 40 | E54: teeth
A55: spaces | D55: 3
A56: pressure angle | D56: 15 | E56: deg
A57: pitch diameter | D57: 17.22
A58: tooth width | D58: =1.5708*D53 -> 0.6762294 | E58: mm
A59: factor | D59: =inv(RADIANS(D56))*2 -> 0.01229960926
A60: result | D60: =(D57/2)*COS(RADIANS(D56))*((D58/(D57/2))+((2*PI()*D55)/D54)+D59) -> 4.674594122 | E60: mm | F60: =D60/25.4 -> 0.1840391387 | G60: in

Sheet Grinding
A1: Grinding
B3: Surface Grinding
W4: coefficiencts for main mesh list
B5: wheel diameter | E5: =H5*0.0254 -> 0.1778 | F5: m | H5: 7 | I5: in | W5: a | X5: 0.0001604152678
B6: depth of cut | E6: =H6*0.0254 -> 2.54e-05 | F6: m | H6: 0.001 | I6: in | W6: b | X6: 0.0001233861078
B7: RPM | E7: =H7 -> 3550 | F7: rpm | H7: 3550 | I7: rpm | W7: c | X7: -1.156365094
B8: wheel speed | E8: =E5*PI()*E7/60 -> 33.04903112 | F8: m/s | H8: =H5*PI()*(1/12)*H7 -> 6505.714787 | I8: sfpm | W8: offset | X8: -22.92416346
B9: work speed | E9: =H9*0.0254 -> 0.2499995 | F9: m/s | H9: 9.8425 | I9: in/s
B10: work speed, vw | E10: =E9*60000 -> 14999.97 | F10: mm/min | L10: mesh | M10: um | N10: corner | P10: creep feed grinding | W10: coefficients for micro mesh list
B11: interface speed, high | E11: =E8+E9 -> 33.29903062 | F11: m/s | N11: in | P11: in | Q11: mm | W11: a | X11: -0.01583398957
B12: interface speed, low | E12: =E8-E9 -> 32.79903162 | F12: m/s | L12: F4 | M12: 4750 | N12: =(3*M12)/25400 -> 0.561023622 | W12: b | X12: 0.0004359272606
B13: aggressiveness factor (20-30) | E13: =16.7*((E9*60000)/E8)*SQRT(E6/E5) -> 90.59393202 | L13: F5 | M13: 4000 | N13: 0.4724409449 | W13: c | X13: -1.591504697
B14: average chip thickness, hm | E14: =(E6*E10)/(E8*60*1000) -> 1.9213838e-07 | L14: F6 | M14: 3350 | N14: 0.3956692913 | W14: offset | X14: 0.1244864149
B15: removal rate, qw | E15: =(E6*E10)/60 -> 0.0063499873 | F15: mm³/s/mm | L15: F7 | M15: 2800 | N15: 0.3307086614
B16: speed ratio of grinding, qs | E16: =(E8*60*1000)/(E10) -> 132.1963889 | L16: F8 | M16: 2360 | N16: 0.2787401575
L17: F10 | M17: 2000 | N17: 0.2362204724
B18: infeed (my numbers) | L18: F12 | M18: 1700 | N18: 0.2007874016
L19: F14 | M19: 1400 | N19: 0.1653543307
B20: wheel width | H20: 0.5 | I20: in | L20: F16 | M20: 1180 | N20: 0.1393700787
B21: extreme roughing | H21: =0.4*$H$20 -> 0.2 | I21: in | L21: F20 | M21: 1000 | N21: 0.1181102362
B22: roughing | H22: =0.2*$H$20 -> 0.1 | I22: in | L22: F22 | M22: 850 | N22: 0.1003937008
B23: typical | H23: =0.1*$H$20 -> 0.05 | I23: in | L23: F24 | M23: 710 | N23: 0.08385826772
B24: fine finishing | H24: =0.05*$H$20 -> 0.025 | I24: in | K24: é | L24: F30 | M24: 600 | N24: 0.07086614173
B25: very fine finishing | H25: =0.025*$H$20 -> 0.0125 | I25: in | K25: coarser | L25: F36 | M25: 500 | N25: 0.05905511811 | T25: Radiac Catalog, Pacific Catalog
L26: F40 | M26: 425 | N26: 0.05019685039 | V26: particle | W26: min radius | X26: max radius | Y26: min finish | Z26: max finish
K27: typical | L27: F46 | M27: 355 | N27: 0.04192913386 | P27: =Q27/25.4 -> 0.07874015748 | Q27: 2 | V27: in
L28: F54 | M28: 300 | N28: 0.03543307087 | T28: typical | U28: 46 | V28: 0.02 | W28: 0.02 | X28: none | Y28: 32 | Z28: none
K29: finer | L29: F60 | M29: 250 | N29: 0.02952755906 | P29: =Q29/25.4 -> 0.03937007874 | Q29: 1 | U29: 54 | V29: 0.017 | W29: .017 | X29: .02 | Y29: 20 | Z29: 32
K30: ê | L30: F70 | M30: 212 | N30: 0.02503937008 | T30: finer | U30: 60 | V30: 0.016 | W30: .016 | X30: .020 | Y30: 15 | Z30: 20
L31: F80 | M31: 180 | N31: 0.02125984252 | P31: =Q31/25.4 -> 0.02362204724 | Q31: 0.6 | T31: ê | U31: 70
L32: F90 | M32: 150 | N32: 0.01771653543 | U32: 80 | V32: 0.0105 | W32: .010 | X32: .020 | Y32: 12 | Z32: 18
L33: F100 | M33: 125 | N33: 0.01476377953 | P33: =Q33/25.4 -> 0.0157480315 | Q33: 0.4 | U33: 90
L34: F120 | M34: 106 | N34: 0.01251968504 | P34: 0.01181102362 | Q34: 0.3 | U34: 100 | V34: 0.0085 | W34: .008 | X34: .010 | Y34: 10 | Z34: 15
L35: F150 | M35: 75 | N35: 0.008858267717 | U35: 120 | V35: 0.0056 | W35: .005 | X35: .008 | Y35: 8 | Z35: 12
L36: F180 | M36: 63 | N36: 0.007440944882 | U36: 150 | V36: 0.0048 | W36: .004 | X36: .006 | Y36: 6 | Z36: 10
L37: F220 | M37: 53 | N37: 0.00625984252 | U37: 180
B38: dressing | U38: 220 | V38: 0.0026 | W38: .003 | X38: .005 | Y38: 5 | Z38: 6
E39: rough | F39: finish | L39: micro series starts here
B40: diamond infeed, mm/pass | E40: 0.025 | F40: .012 to .020 | L40: F230 | M40: 53 | N40: =(3*M40)/25400 -> 0.00625984252
B41: traverse rate, mm/wheel rev | E41: 0.18 | F41: 0.1 | L41: F240 | M41: 44.5 | N41: 0.005255905512
L42: F280 | M42: 36.5 | N42: 0.004311023622
L43: F320 | M43: 29.2 | N43: 0.003448818898
B44: rules | L44: F360 | M44: 22.8 | N44: 0.002692913386
D45: up | E45: down | L45: F400 | M45: 17.3 | N45: 0.002043307087
B46: wheel speed | D46: harder | E46: softer | L46: F500 | M46: 12.8 | N46: 0.001511811024
B47: work speed | D47: softer | E47: harder | L47: F600 | M47: 9.3 | N47: 0.001098425197
B48: travers speed | D48: softer | E48: harder | L48: F800 | M48: 6.5 | N48: 0.0007677165354
B49: infeed rate | D49: softer | E49: harder | L49: F1000 | M49: 4.5 | N49: 0.000531496063
L50: F1200 | M50: 3 | N50: 0.0003543307087
B51: Dry grinding with vitrious wheels requires 1-2 grades softer than wet grinding. | L51: F1500 | M51: 2 | N51: 0.0002362204724
L52: F2000 | M52: 1.2 | N52: 0.0001417322835

Sheet Metric Plain Chart
A1: For Logan and Similar Plain Change Gear Lathes | G1: Lead Screw | H1: 8 | I1: TPI | J1: =25.4/H1 -> 3.175 | K1: mm pitch
M4: 16 | N4: standard
M5: 18 | N5: standard
M6: 24 | N6: standard
M7: 32 | N7: standard
M8: 36 | N8: standard
M9: 40 | N9: standard
M10: 44 | N10: standard
M11: 46 | N11: standard
M12: 48 | N12: standard
M13: 52 | N13: standard
M14: 54 | N14: standard
M15: 56 | N15: standard
M16: 60 | N16: standard
M17: 64 | N17: standard
M18: 72 | N18: standard
A19: mm Pitch | C19: Stud | D19: Transpose1 | E19: Transpose2 | F19: Compound1 | G19: Compound2 | H19: Screw | J19: Calc. | K19: Checked | L19: Idler | M19: 28 | N19: special
D20: inboard | E20: outboard | F20: outboard | G20: inboard | M20: 50 | N20: special
A22: 0.2 | C22: 16 | D22: 47 | E22: 37 | F22: 60 | G22: 18 | H22: 60 | J22: =(C22/H22)*(E22/D22)*(G22/F22)*$J$1 -> 0.1999574468
A23: 0.25 | C23: 16 | D23: =$D$22 -> 47 | E23: =$E$22 -> 37 | F23: 60 | G23: 24 | H23: 64 | J23: =(C23/H23)*(E23/D23)*(G23/F23)*$J$1 -> 0.2499468085
A24: 0.3 | C24: 18 | D24: =$D$22 -> 47 | E24: =$E$22 -> 37 | F24: 40 | G24: 16 | H24: 60 | J24: 0.2999361702
A25: 0.35 | C25: 16 | D25: 47 | E25: 37 | F25: 50 | G25: 28 | H25: 64 | J25: 0.3499255319
A26: 0.4 | C26: 16 | D26: 47 | E26: 37 | F26: 40 | G26: 24 | H26: 60 | J26: 0.3999148936
A27: 0.45 | C27: 24 | D27: 47 | E27: 37 | F27: 40 | G27: 18 | H27: 60 | J27: 0.4499042553
A28: 0.5 | C28: 24 | D28: 47 | E28: 37 | F28: 64 | G28: 32 | H28: 60 | J28: 0.499893617 | K28: good
A29: 0.6 | C29: 18 | D29: 47 | E29: 37 | F29: 40 | G29: 32 | H29: 60 | J29: =(C29/H29)*(E29/D29)*(G29/F29)*$J$1 -> 0.5998723404
A30: 0.65 | C30: 18 | D30: 47 | E30: 37 | F30: 60 | G30: 52 | H30: 60 | J30: 0.6498617021
A31: 0.7 | C31: 28 | D31: 47 | E31: 37 | F31: 40 | G31: 24 | H31: 60 | J31: 0.6998510638 | K31: good
A32: 0.75 | C32: 18 | D32: 47 | E32: 37 | F32: 1 | G32: 1 | H32: 60 | J32: 0.7498404255 | K32: good
A33: 0.8 | C33: 24 | D33: 47 | E33: 37 | F33: 40 | G33: 32 | H33: 60 | J33: 0.7998297872
A34: 0.9 | C34: 18 | D34: 47 | E34: 37 | F34: 60 | G34: 48 | H34: 40 | J34: 0.8998085106
A35: 1 | C35: 24 | D35: 47 | E35: 37 | F35: 1 | G35: 1 | H35: 60 | J35: 0.999787234
A36: 1.2 | C36: 48 | D36: 47 | E36: 37 | F36: 40 | G36: 24 | H36: 60 | J36: 1.199744681
A37: 1.25 | C37: 18 | D37: 47 | E37: 37 | F37: 1 | G37: 1 | H37: 36 | J37: 1.249734043
A38: 1.3 | C38: 24 | D38: 47 | E38: 37 | F38: 40 | G38: 52 | H38: 60 | J38: 1.299723404
A39: 1.4 | C39: 24 | D39: 47 | E39: 37 | F39: 40 | G39: 56 | H39: 60 | J39: 1.399702128
A40: 1.5 | C40: 36 | D40: 47 | E40: 37 | F40: 1 | G40: 1 | H40: 60 | J40: 1.499680851
A41: 1.75 | C41: 56 | D41: 47 | E41: 37 | F41: 40 | G41: 32 | H41: 64 | J41: 1.74962766
A42: 2 | C42: 48 | D42: 47 | E42: 37 | F42: 1 | G42: 1 | H42: 60 | J42: 1.999574468 | K42: good
A43: 2.25 | C43: 36 | D43: 47 | E43: 37 | F43: 1 | G43: 1 | H43: 40 | J43: 2.249521277
A44: 2.5 | C44: 48 | D44: 47 | E44: 37 | F44: 1 | G44: 1 | H44: 48 | J44: 2.499468085
A45: 2.75 | C45: 44 | D45: 47 | E45: 37 | F45: 1 | G45: 1 | H45: 40 | J45: 2.749414894
A46: 3 | C46: 48 | D46: 47 | E46: 37 | F46: 60 | G46: 48 | H46: 32 | J46: 2.999361702
A47: 3.5 | C47: 54 | D47: 47 | E47: 37 | F47: 60 | G47: 56 | H47: 36 | J47: 3.499255319
A48: 4 | C48: 48 | D48: 47 | E48: 37 | F48: 60 | G48: 48 | H48: 24 | J48: 3.999148936
A50: These are the Logan factory recommendations using many single ratios but requiring 80 and 100 tooth screw gears
A56: mm Pitch | C56: Stud | D56: Transpose1 | E56: Transpose2 | F56: Compound1 | G56: Compound2 | H56: Screw | J56: Calc. | K56: Notes
D57: inboard | E57: outboard | F57: outboard | G57: inboard
A59: 0.2 | C59: 32 | D59: 47 | E59: 37 | F59: 72 | G59: 18 | H59: 100 | J59: =(C59/H59)*(E59/D59)*(G59/F59)*$J$1 -> 0.1999574468
A60: 0.25 | C60: 40 | D60: 47 | E60: 37 | F60: 72 | G60: 18 | H60: 100 | J60: =(C60/H60)*(E60/D60)*(G60/F60)*$J$1 -> 0.2499468085
A61: 0.3 | C61: 48 | D61: 47 | E61: 37 | F61: 72 | G61: 18 | H61: 100 | J61: 0.2999361702
A62: 0.35 | C62: 56 | D62: 47 | E62: 37 | F62: 72 | G62: 18 | H62: 100 | J62: 0.3499255319
A63: 0.4 | C63: 16 | D63: 47 | E63: 37 | F63: 1 | G63: 1 | H63: 100 | J63: 0.3999148936
A64: 0.45 | C64: 18 | D64: 47 | E64: 37 | F64: 1 | G64: 1 | H64: 100 | J64: 0.4499042553
A65: 0.5 | C65: 20 | D65: 47 | E65: 37 | F65: 1 | G65: 1 | H65: 100 | J65: 0.499893617
A66: 0.6 | C66: 24 | D66: 47 | E66: 37 | F66: 1 | G66: 1 | H66: 100 | J66: 0.5998723404
A67: 0.65 | C67: 26 | D67: 47 | E67: 37 | F67: 1 | G67: 1 | H67: 100 | J67: 0.6498617021
A68: 0.7 | C68: 28 | D68: 47 | E68: 37 | F68: 1 | G68: 1 | H68: 100 | J68: 0.6998510638
A69: 0.75 | C69: 24 | D69: 47 | E69: 37 | F69: 1 | G69: 1 | H69: 80 | J69: 0.7498404255
A70: 0.8 | C70: 30 | D70: 47 | E70: 37 | F70: 1 | G70: 1 | H70: 100 | J70: 0.7498404255
A71: 0.9 | C71: 36 | D71: 47 | E71: 37 | F71: 1 | G71: 1 | H71: 100 | J71: 0.8998085106
A72: 1 | C72: 40 | D72: 47 | E72: 37 | F72: 1 | G72: 1 | H72: 100 | J72: 0.999787234
A73: 1.2 | C73: 48 | D73: 47 | E73: 37 | F73: 1 | G73: 1 | H73: 100 | J73: 1.199744681
A74: 1.25 | C74: 40 | D74: 47 | E74: 37 | F74: 1 | G74: 1 | H74: 80 | J74: 1.249734043
A75: 1.3 | C75: 52 | D75: 47 | E75: 37 | F75: 1 | G75: 1 | H75: 100 | J75: 1.299723404
A76: 1.4 | C76: 56 | D76: 47 | E76: 37 | F76: 1 | G76: 1 | H76: 100 | J76: 1.399702128
A77: 1.5 | C77: 48 | D77: 47 | E77: 37 | F77: 1 | G77: 1 | H77: 80 | J77: 1.499680851
A78: 1.75 | C78: 56 | D78: 47 | E78: 37 | F78: 1 | G78: 1 | H78: 80 | J78: 1.74962766
A79: 2 | C79: 32 | D79: 47 | E79: 37 | F79: 1 | G79: 1 | H79: 40 | J79: 1.999574468 | K79: Use 72 tooth idler gear
A80: 2.25 | C80: 36 | D80: 47 | E80: 37 | F80: 1 | G80: 1 | H80: 40 | J80: 2.249521277 | K80: Use 72 tooth idler gear
A81: 2.5 | C81: 32 | D81: 47 | E81: 37 | F81: 1 | G81: 1 | H81: 32 | J81: 2.499468085 | K81: Use 72 tooth idler gear
A82: 2.75 | C82: 44 | D82: 47 | E82: 37 | F82: 1 | G82: 1 | H82: 40 | J82: 2.749414894 | K82: Use 72 tooth idler gear
A83: 3 | C83: 48 | D83: 47 | E83: 37 | F83: 1 | G83: 1 | H83: 40 | J83: 2.999361702 | K83: Use 72 tooth idler gear
A84: 3.5 | C84: 28 | D84: 47 | E84: 37 | F84: 1 | G84: 1 | H84: 20 | J84: 3.499255319 | K84: Use 72 tooth idler gear
A85: 4 | C85: 32 | D85: 47 | E85: 37 | F85: 1 | G85: 1 | H85: 20 | J85: 3.999148936 | K85: Use 72 tooth idler gear
A86: 4.5 | C86: 36 | D86: 47 | E86: 37 | F86: 1 | G86: 1 | H86: 20 | J86: 4.499042553 | K86: Use 72 tooth idler gear
A87: 5 | C87: 40 | D87: 47 | E87: 37 | F87: 1 | G87: 1 | H87: 20 | J87: 4.99893617 | K87: Use 72 tooth idler gear
A88: 5.5 | C88: 44 | D88: 47 | E88: 37 | F88: 1 | G88: 1 | H88: 20 | J88: 5.498829787 | K88: Use 72 tooth idler gear
A89: 6 | C89: 48 | D89: 47 | E89: 37 | F89: 1 | G89: 1 | H89: 20 | J89: 5.998723404 | K89: Use 72 tooth idler gear

Sheet Metric QC Chart
A1: For Logan and Similar Lathes with a QC Gearbox | H1: Leadscrew | I1: 8 | J1: TPI | K1: =25.4/I1 -> 3.175 | L1: mm pitch
H2: Transpose1 | I2: 100
H3: Transpose2 | I3: 127 | K3: =K1*(I2/I3) -> 2.5 | L3: mm virtual pitch
A10: mm Pitch | B10: Stud | C10: Gearbox | D10: QC TPI | G10: Ext. ratio | H10: QC ratio | I10: Product | J10: TPI
A13: 0.2 | B13: 48 | C13: 60 | D13: 160 | G13: =B13/C13 -> 0.8 | H13: 0.1 | I13: =G13*H13 -> 0.08 | J13: =I13*$K$3 -> 0.2
A14: 0.25 | B14: 48 | C14: 60 | D14: 128 | G14: =B14/C14 -> 0.8 | H14: 0.125 | I14: =G14*H14 -> 0.1 | J14: =I14*$K$3 -> 0.25
A15: 0.3 | B15: 72 | C15: 60 | D15: 160 | G15: 1.2 | H15: 0.1 | I15: 0.12 | J15: 0.3
A16: 0.35 | B16: 42 | C16: 60 | D16: 80 | G16: 0.7 | H16: 0.2 | I16: 0.14 | J16: 0.35
A17: 0.4 | B17: 48 | C17: 60 | D17: 80 | G17: 0.8 | H17: 0.2 | I17: 0.16 | J17: 0.4
A18: 0.45 | B18: 54 | C18: 60 | D18: 80 | G18: 0.9 | H18: 0.2 | I18: 0.18 | J18: 0.45
A19: 0.5 | B19: 48 | C19: 60 | D19: 64 | G19: 0.8 | H19: 0.25 | I19: 0.2 | J19: 0.5
A20: 0.6 | B20: 72 | C20: 60 | D20: 80 | G20: 1.2 | H20: 0.2 | I20: 0.24 | J20: 0.6
A21: 0.65 | B21: 39 | C21: 60 | D21: 40 | G21: 0.65 | H21: 0.4 | I21: 0.26 | J21: 0.65
A22: 0.7 | B22: 42 | C22: 60 | D22: 40 | G22: 0.7 | H22: 0.4 | I22: 0.28 | J22: 0.7
A23: 0.75 | B23: 72 | C23: 60 | D23: 64 | G23: 1.2 | H23: 0.25 | I23: 0.3 | J23: 0.75
A24: 0.8 | B24: 48 | C24: 60 | D24: 40 | G24: 0.8 | H24: 0.4 | I24: 0.32 | J24: 0.8
A25: 0.9 | B25: 54 | C25: 60 | D25: 40 | G25: 0.9 | H25: 0.4 | I25: 0.36 | J25: 0.9
A26: 1 | B26: 48 | C26: 60 | D26: 32 | G26: 0.8 | H26: 0.5 | I26: 0.4 | J26: 1
A27: 1.2 | B27: 72 | C27: 60 | D27: 40 | G27: 1.2 | H27: 0.4 | I27: 0.48 | J27: 1.2
A28: 1.25 | B28: 60 | C28: 60 | D28: 32 | G28: 1 | H28: 0.5 | I28: 0.5 | J28: 1.25
A29: 1.3 | B29: 39 | C29: 60 | D29: 20 | G29: 0.65 | H29: 0.8 | I29: 0.52 | J29: 1.3
A30: 1.4 | B30: 42 | C30: 60 | D30: 20 | G30: 0.7 | H30: 0.8 | I30: 0.56 | J30: 1.4
A31: 1.5 | B31: 72 | C31: 60 | D31: 32 | G31: 1.2 | H31: 0.5 | I31: 0.6 | J31: 1.5
A32: 1.75 | B32: 42 | C32: 60 | D32: 16 | G32: 0.7 | H32: 1 | I32: 0.7 | J32: 1.75
A33: 2 | B33: 48 | C33: 60 | D33: 16 | G33: 0.8 | H33: 1 | I33: 0.8 | J33: 2
A34: 2.25 | B34: 54 | C34: 60 | D34: 16 | G34: 0.9 | H34: 1 | I34: 0.9 | J34: 2.25
A35: 2.5 | B35: 60 | C35: 60 | D35: 16 | G35: 1 | H35: 1 | I35: 1 | J35: 2.5
A36: 2.75 | B36: 66 | C36: 60 | D36: 16 | G36: 1.1 | H36: 1 | I36: 1.1 | J36: 2.75
A37: 3 | B37: 72 | C37: 60 | D37: 16 | G37: 1.2 | H37: 1 | I37: 1.2 | J37: 3
A38: 3.5 | B38: 42 | C38: 60 | D38: 8 | G38: 0.7 | H38: 2 | I38: 1.4 | J38: 3.5
A39: 4 | B39: 48 | C39: 60 | D39: 8 | G39: 0.8 | H39: 2 | I39: 1.6 | J39: 4
A40: 4.5 | B40: 54 | C40: 60 | D40: 8 | G40: 0.9 | H40: 2 | I40: 1.8 | J40: 4.5
A41: 5 | B41: 60 | C41: 60 | D41: 8 | G41: 1 | H41: 2 | I41: 2 | J41: 5
A42: 5.5 | B42: 66 | C42: 60 | D42: 8 | G42: 1.1 | H42: 2 | I42: 2.2 | J42: 5.5
A43: 6 | B43: 72 | C43: 60 | D43: 8 | G43: 1.2 | H43: 2 | I43: 2.4 | J43: 6

Sheet Metric Ratio Table
A1: Gear Selector for Fine Pitch Metric Threads on the Logan Changegear Lathe
B3: 1) Enter the desired pitch. We assume that 37/47 or 100/127 gear packs are already installed.
B4: 2) Select a gear pair from the table that produces the correct ratio. Install as the stud gear and leadscrew gear.
B5: 3) If a simple ratio is impossible, select two gear pairs, one for each of the new 1st and 2nd ratios. Some fractional multiplier may be needed.
B6: 4) Install one pair as the stud and outer of the pack nearest the leadscrew, the other pair as the inner of the pack, and the leadscrew gear.
B7: Warning- Especially with the finer threads, many combinations can't be physically installed and engage properly. Experimentation required!
K9: Logical | S9: Special | T9: Alt.
B10: Enter desired pitch | F10: 0.35 | G10: mm | I10: ratio multipliers | K10: 2 | L10: 3 | M10: 4 | N10: 5 | O10: 6 | P10: 7 | Q10: 8 | R10: 9 | S10: 2.5 | T10: =T11/F11 -> 1
B11: Needed ratio | F11: =F10/2.5 -> 0.14 | I11: new 1st ratio | K11: =$F$11*K10 -> 0.28 | L11: =$F$11*L10 -> 0.42 | M11: =$F$11*M10 -> 0.56 | N11: 0.7 | O11: 0.84 | P11: 0.98 | Q11: 1.12 | R11: 1.26 | S11: 0.35 | T11: =F11/T12 -> 0.14
I12: new 2nd ratio | K12: =1/K10 -> 0.5 | L12: =1/L10 -> 0.3333333333 | M12: 0.25 | N12: 0.2 | O12: 0.1666666667 | P12: 0.1428571429 | Q12: 0.125 | R12: 0.1111111111 | S12: 0.4 | T12: 1
B13: test numerators | D13: 24 | E13: 28 | F13: =(D13/D14)*(E13/E14) -> 0.28
B14: test denom. | D14: 60 | E14: 40 | I14: Use of special compound gear selection program recommended for difficult pitches.
B15: test ratios | D15: =D13/D14 -> 0.4 | E15: =E13/E14 -> 0.7
B17: Standard Gears | Q17: Special Gears
B18: 16 | C18: 18 | D18: 24 | E18: 32 | F18: 36 | G18: 40 | H18: 44 | I18: 46 | J18: 48 | K18: 52 | L18: 54 | M18: 56 | N18: 60 | O18: 64 | P18: 72 | Q18: 68 | R18: 50 | S18: 28 | T18: 100
A19: 16 | B19: =B$18/$A19 -> 1 | C19: 1.125 | D19: 1.5 | E19: 2 | F19: 2.25 | G19: 2.5 | H19: 2.75 | I19: 2.875 | J19: 3 | K19: 3.25 | L19: =L$18/$A19 -> 3.375 | M19: 3.5 | N19: 3.75 | O19: 4 | P19: 4.5 | Q19: 4.25 | R19: 3.125 | S19: 1.75 | T19: 6.25
A20: 18 | B20: 0.8888888889 | C20: 1 | D20: 1.333333333 | E20: 1.777777778 | F20: 2 | G20: 2.222222222 | H20: 2.444444444 | I20: 2.555555556 | J20: 2.666666667 | K20: 2.888888889 | L20: 3 | M20: 3.111111111 | N20: 3.333333333 | O20: 3.555555556 | P20: 4 | Q20: 3.777777778 | R20: 2.777777778 | S20: 1.555555556 | T20: 5.555555556
A21: 24 | B21: 0.6666666667 | C21: 0.75 | D21: 1 | E21: 1.333333333 | F21: 1.5 | G21: 1.666666667 | H21: 1.833333333 | I21: 1.916666667 | J21: 2 | K21: 2.166666667 | L21: 2.25 | M21: 2.333333333 | N21: 2.5 | O21: 2.666666667 | P21: 3 | Q21: 2.833333333 | R21: 2.083333333 | S21: 1.166666667 | T21: 4.166666667
A22: 32 | B22: 0.5 | C22: 0.5625 | D22: 0.75 | E22: 1 | F22: 1.125 | G22: 1.25 | H22: 1.375 | I22: 1.4375 | J22: 1.5 | K22: 1.625 | L22: 1.6875 | M22: 1.75 | N22: 1.875 | O22: 2 | P22: 2.25 | Q22: 2.125 | R22: 1.5625 | S22: 0.875 | T22: 3.125
A23: 36 | B23: 0.4444444444 | C23: 0.5 | D23: 0.6666666667 | E23: 0.8888888889 | F23: 1 | G23: 1.111111111 | H23: 1.222222222 | I23: 1.277777778 | J23: 1.333333333 | K23: 1.444444444 | L23: 1.5 | M23: 1.555555556 | N23: 1.666666667 | O23: 1.777777778 | P23: 2 | Q23: 1.888888889 | R23: 1.388888889 | S23: 0.7777777778 | T23: 2.777777778
A24: 40 | B24: 0.4 | C24: 0.45 | D24: 0.6 | E24: 0.8 | F24: 0.9 | G24: 1 | H24: 1.1 | I24: 1.15 | J24: 1.2 | K24: 1.3 | L24: 1.35 | M24: 1.4 | N24: 1.5 | O24: 1.6 | P24: 1.8 | Q24: 1.7 | R24: 1.25 | S24: 0.7 | T24: 2.5
A25: 44 | B25: 0.3636363636 | C25: 0.4090909091 | D25: 0.5454545455 | E25: 0.7272727273 | F25: 0.8181818182 | G25: 0.9090909091 | H25: 1 | I25: 1.045454545 | J25: 1.090909091 | K25: 1.181818182 | L25: 1.227272727 | M25: 1.272727273 | N25: 1.363636364 | O25: 1.454545455 | P25: 1.636363636 | Q25: 1.545454545 | R25: 1.136363636 | S25: 0.6363636364 | T25: 2.272727273
A26: 46 | B26: 0.347826087 | C26: 0.3913043478 | D26: 0.5217391304 | E26: 0.6956521739 | F26: 0.7826086957 | G26: 0.8695652174 | H26: 0.9565217391 | I26: 1 | J26: 1.043478261 | K26: 1.130434783 | L26: 1.173913043 | M26: 1.217391304 | N26: 1.304347826 | O26: 1.391304348 | P26: 1.565217391 | Q26: 1.47826087 | R26: 1.086956522 | S26: 0.6086956522 | T26: 2.173913043
A27: 48 | B27: 0.3333333333 | C27: 0.375 | D27: 0.5 | E27: 0.6666666667 | F27: 0.75 | G27: 0.8333333333 | H27: 0.9166666667 | I27: 0.9583333333 | J27: 1 | K27: 1.083333333 | L27: 1.125 | M27: 1.166666667 | N27: 1.25 | O27: 1.333333333 | P27: 1.5 | Q27: 1.416666667 | R27: 1.041666667 | S27: 0.5833333333 | T27: 2.083333333
A28: 52 | B28: 0.3076923077 | C28: 0.3461538462 | D28: 0.4615384615 | E28: 0.6153846154 | F28: 0.6923076923 | G28: 0.7692307692 | H28: 0.8461538462 | I28: 0.8846153846 | J28: 0.9230769231 | K28: 1 | L28: 1.038461538 | M28: 1.076923077 | N28: 1.153846154 | O28: 1.230769231 | P28: 1.384615385 | Q28: 1.307692308 | R28: 0.9615384615 | S28: 0.5384615385 | T28: 1.923076923
A29: 54 | B29: =B$18/$A29 -> 0.2962962963 | C29: 0.3333333333 | D29: 0.4444444444 | E29: 0.5925925926 | F29: 0.6666666667 | G29: 0.7407407407 | H29: 0.8148148148 | I29: 0.8518518519 | J29: 0.8888888889 | K29: 0.962962963 | L29: =L$18/$A29 -> 1 | M29: 1.037037037 | N29: 1.111111111 | O29: 1.185185185 | P29: 1.333333333 | Q29: 1.259259259 | R29: 0.9259259259 | S29: 0.5185185185 | T29: 1.851851852
A30: 56 | B30: 0.2857142857 | C30: 0.3214285714 | D30: 0.4285714286 | E30: 0.5714285714 | F30: 0.6428571429 | G30: 0.7142857143 | H30: 0.7857142857 | I30: 0.8214285714 | J30: 0.8571428571 | K30: 0.9285714286 | L30: 0.9642857143 | M30: 1 | N30: 1.071428571 | O30: 1.142857143 | P30: 1.285714286 | Q30: 1.214285714 | R30: 0.8928571429 | S30: 0.5 | T30: 1.785714286
A31: 60 | B31: 0.2666666667 | C31: 0.3 | D31: 0.4 | E31: 0.5333333333 | F31: 0.6 | G31: 0.6666666667 | H31: 0.7333333333 | I31: 0.7666666667 | J31: 0.8 | K31: 0.8666666667 | L31: 0.9 | M31: 0.9333333333 | N31: 1 | O31: 1.066666667 | P31: 1.2 | Q31: 1.133333333 | R31: 0.8333333333 | S31: 0.4666666667 | T31: 1.666666667
A32: 64 | B32: 0.25 | C32: 0.28125 | D32: 0.375 | E32: 0.5 | F32: 0.5625 | G32: 0.625 | H32: 0.6875 | I32: 0.71875 | J32: 0.75 | K32: 0.8125 | L32: 0.84375 | M32: 0.875 | N32: 0.9375 | O32: 1 | P32: 1.125 | Q32: 1.0625 | R32: 0.78125 | S32: 0.4375 | T32: 1.5625
A33: 72 | B33: 0.2222222222 | C33: 0.25 | D33: 0.3333333333 | E33: 0.4444444444 | F33: 0.5 | G33: 0.5555555556 | H33: 0.6111111111 | I33: 0.6388888889 | J33: 0.6666666667 | K33: 0.7222222222 | L33: 0.75 | M33: 0.7777777778 | N33: 0.8333333333 | O33: 0.8888888889 | P33: 1 | Q33: 0.9444444444 | R33: 0.6944444444 | S33: 0.3888888889 | T33: 1.388888889
A34: 68 | B34: 0.2352941176 | C34: 0.2647058824 | D34: 0.3529411765 | E34: 0.4705882353 | F34: 0.5294117647 | G34: 0.5882352941 | H34: 0.6470588235 | I34: 0.6764705882 | J34: 0.7058823529 | K34: 0.7647058824 | L34: 0.7941176471 | M34: 0.8235294118 | N34: 0.8823529412 | O34: 0.9411764706 | P34: 1.058823529 | Q34: 1 | R34: 0.7352941176 | S34: 0.4117647059 | T34: 1.470588235
A35: 50 | B35: 0.32 | C35: 0.36 | D35: 0.48 | E35: 0.64 | F35: 0.72 | G35: 0.8 | H35: 0.88 | I35: 0.92 | J35: 0.96 | K35: 1.04 | L35: 1.08 | M35: 1.12 | N35: 1.2 | O35: 1.28 | P35: 1.44 | Q35: 1.36 | R35: 1 | S35: 0.56 | T35: 2
A36: 28 | B36: 0.5714285714 | C36: 0.6428571429 | D36: 0.8571428571 | E36: 1.142857143 | F36: 1.285714286 | G36: 1.428571429 | H36: 1.571428571 | I36: 1.642857143 | J36: 1.714285714 | K36: 1.857142857 | L36: 1.928571429 | M36: 2 | N36: 2.142857143 | O36: 2.285714286 | P36: 2.571428571 | Q36: 2.428571429 | R36: 1.785714286 | S36: 1 | T36: 3.571428571
A37: 100 | B37: 0.16 | C37: 0.18 | D37: 0.24 | E37: 0.32 | F37: 0.36 | G37: 0.4 | H37: 0.44 | I37: 0.46 | J37: 0.48 | K37: 0.52 | L37: 0.54 | M37: 0.56 | N37: 0.6 | O37: 0.64 | P37: 0.72 | Q37: 0.68 | R37: 0.5 | S37: 0.28 | T37: 1

Sheet English Ratio Table
A1: Gear Selector for Inch Threads on the Logan Changegear Lathe
B3: 1) Enter the desired pitch. We assume an 8 TPI leadscrew (can change in cell F11).
B4: 2) Select a gear pair from the table that produces the correct ratio. Install as the stud gear and leadscrew gear.
B5: 3) If a simple ratio is impossible, select two gear pairs, one for each of the new 1st and 2nd ratios. Some fractional multiplier may be needed.
B6: 4) Install one pair as the stud and outer of the pack nearest the leadscrew, the other pair as the inner of the pack, and the leadscrew gear.
B7: Warning- Especially with the finer threads, many combinations can't be physically installed and engage properly. Experimentation required!
K9: Integer | S9: Fractional
B10: Enter desired TPI | F10: 8.47 | G10: TPI | I10: ratio multipliers | K10: 2 | L10: 3 | M10: 4 | N10: 5 | O10: 6 | P10: 7 | Q10: 8 | R10: 9 | S10: 2.5
B11: Needed ratio | F11: =(1/F10)/0.125 -> 0.9445100354 | I11: new 1st ratio | K11: =$F$11*K10 -> 1.889020071 | L11: 2.833530106 | M11: 3.778040142 | N11: 4.722550177 | O11: 5.667060213 | P11: 6.611570248 | Q11: 7.556080283 | R11: 8.500590319 | S11: 2.361275089
I12: new 2nd ratio | K12: =1/K10 -> 0.5 | L12: 0.3333333333 | M12: 0.25 | N12: 0.2 | O12: 0.1666666667 | P12: 0.1428571429 | Q12: 0.125 | R12: 0.1111111111 | S12: 0.4
B13: test numerators | D13: 1 | E13: 68 | F13: =(D13/D14)*(E13/E14) -> 0.9444444444
B14: test denom. | D14: 1 | E14: 72
B15: test ratios | D15: =D13/D14 -> 1 | E15: =E13/E14 -> 0.9444444444
B17: Standard Gears | Q17: Special Gears
B18: 16 | C18: 18 | D18: 24 | E18: 32 | F18: 36 | G18: 40 | H18: 44 | I18: 46 | J18: 48 | K18: 52 | L18: 54 | M18: 56 | N18: 60 | O18: 64 | P18: 72 | Q18: 68 | R18: 50 | S18: 28 | T18: 100
A19: 16 | B19: =B$18/$A19 -> 1 | C19: 1.125 | D19: 1.5 | E19: 2 | F19: 2.25 | G19: 2.5 | H19: 2.75 | I19: 2.875 | J19: 3 | K19: 3.25 | L19: =L$18/$A19 -> 3.375 | M19: 3.5 | N19: 3.75 | O19: 4 | P19: 4.5 | Q19: 4.25 | R19: 3.125 | S19: 1.75 | T19: 6.25
A20: 18 | B20: 0.8888888889 | C20: 1 | D20: 1.333333333 | E20: 1.777777778 | F20: 2 | G20: 2.222222222 | H20: 2.444444444 | I20: 2.555555556 | J20: 2.666666667 | K20: 2.888888889 | L20: 3 | M20: 3.111111111 | N20: 3.333333333 | O20: 3.555555556 | P20: 4 | Q20: 3.777777778 | R20: 2.777777778 | S20: 1.555555556 | T20: 5.555555556
A21: 24 | B21: 0.6666666667 | C21: 0.75 | D21: 1 | E21: 1.333333333 | F21: 1.5 | G21: 1.666666667 | H21: 1.833333333 | I21: 1.916666667 | J21: 2 | K21: 2.166666667 | L21: 2.25 | M21: 2.333333333 | N21: 2.5 | O21: 2.666666667 | P21: 3 | Q21: 2.833333333 | R21: 2.083333333 | S21: 1.166666667 | T21: 4.166666667
A22: 32 | B22: 0.5 | C22: 0.5625 | D22: 0.75 | E22: 1 | F22: 1.125 | G22: 1.25 | H22: 1.375 | I22: 1.4375 | J22: 1.5 | K22: 1.625 | L22: 1.6875 | M22: 1.75 | N22: 1.875 | O22: 2 | P22: 2.25 | Q22: 2.125 | R22: 1.5625 | S22: 0.875 | T22: 3.125
A23: 36 | B23: 0.4444444444 | C23: 0.5 | D23: 0.6666666667 | E23: 0.8888888889 | F23: 1 | G23: 1.111111111 | H23: 1.222222222 | I23: 1.277777778 | J23: 1.333333333 | K23: 1.444444444 | L23: 1.5 | M23: 1.555555556 | N23: 1.666666667 | O23: 1.777777778 | P23: 2 | Q23: 1.888888889 | R23: 1.388888889 | S23: 0.7777777778 | T23: 2.777777778
A24: 40 | B24: 0.4 | C24: 0.45 | D24: 0.6 | E24: 0.8 | F24: 0.9 | G24: 1 | H24: 1.1 | I24: 1.15 | J24: 1.2 | K24: 1.3 | L24: 1.35 | M24: 1.4 | N24: 1.5 | O24: 1.6 | P24: 1.8 | Q24: 1.7 | R24: 1.25 | S24: 0.7 | T24: 2.5
A25: 44 | B25: 0.3636363636 | C25: 0.4090909091 | D25: 0.5454545455 | E25: 0.7272727273 | F25: 0.8181818182 | G25: 0.9090909091 | H25: 1 | I25: 1.045454545 | J25: 1.090909091 | K25: 1.181818182 | L25: 1.227272727 | M25: 1.272727273 | N25: 1.363636364 | O25: 1.454545455 | P25: 1.636363636 | Q25: 1.545454545 | R25: 1.136363636 | S25: 0.6363636364 | T25: 2.272727273
A26: 46 | B26: 0.347826087 | C26: 0.3913043478 | D26: 0.5217391304 | E26: 0.6956521739 | F26: 0.7826086957 | G26: 0.8695652174 | H26: 0.9565217391 | I26: 1 | J26: 1.043478261 | K26: 1.130434783 | L26: 1.173913043 | M26: 1.217391304 | N26: 1.304347826 | O26: 1.391304348 | P26: 1.565217391 | Q26: 1.47826087 | R26: 1.086956522 | S26: 0.6086956522 | T26: 2.173913043
A27: 48 | B27: 0.3333333333 | C27: 0.375 | D27: 0.5 | E27: 0.6666666667 | F27: 0.75 | G27: 0.8333333333 | H27: 0.9166666667 | I27: 0.9583333333 | J27: 1 | K27: 1.083333333 | L27: 1.125 | M27: 1.166666667 | N27: 1.25 | O27: 1.333333333 | P27: 1.5 | Q27: 1.416666667 | R27: 1.041666667 | S27: 0.5833333333 | T27: 2.083333333
A28: 52 | B28: 0.3076923077 | C28: 0.3461538462 | D28: 0.4615384615 | E28: 0.6153846154 | F28: 0.6923076923 | G28: 0.7692307692 | H28: 0.8461538462 | I28: 0.8846153846 | J28: 0.9230769231 | K28: 1 | L28: 1.038461538 | M28: 1.076923077 | N28: 1.153846154 | O28: 1.230769231 | P28: 1.384615385 | Q28: 1.307692308 | R28: 0.9615384615 | S28: 0.5384615385 | T28: 1.923076923
A29: 54 | B29: =B$18/$A29 -> 0.2962962963 | C29: 0.3333333333 | D29: 0.4444444444 | E29: 0.5925925926 | F29: 0.6666666667 | G29: 0.7407407407 | H29: 0.8148148148 | I29: 0.8518518519 | J29: 0.8888888889 | K29: 0.962962963 | L29: =L$18/$A29 -> 1 | M29: 1.037037037 | N29: 1.111111111 | O29: 1.185185185 | P29: 1.333333333 | Q29: 1.259259259 | R29: 0.9259259259 | S29: 0.5185185185 | T29: 1.851851852
A30: 56 | B30: 0.2857142857 | C30: 0.3214285714 | D30: 0.4285714286 | E30: 0.5714285714 | F30: 0.6428571429 | G30: 0.7142857143 | H30: 0.7857142857 | I30: 0.8214285714 | J30: 0.8571428571 | K30: 0.9285714286 | L30: 0.9642857143 | M30: 1 | N30: 1.071428571 | O30: 1.142857143 | P30: 1.285714286 | Q30: 1.214285714 | R30: 0.8928571429 | S30: 0.5 | T30: 1.785714286
A31: 60 | B31: 0.2666666667 | C31: 0.3 | D31: 0.4 | E31: 0.5333333333 | F31: 0.6 | G31: 0.6666666667 | H31: 0.7333333333 | I31: 0.7666666667 | J31: 0.8 | K31: 0.8666666667 | L31: 0.9 | M31: 0.9333333333 | N31: 1 | O31: 1.066666667 | P31: 1.2 | Q31: 1.133333333 | R31: 0.8333333333 | S31: 0.4666666667 | T31: 1.666666667
A32: 64 | B32: 0.25 | C32: 0.28125 | D32: 0.375 | E32: 0.5 | F32: 0.5625 | G32: 0.625 | H32: 0.6875 | I32: 0.71875 | J32: 0.75 | K32: 0.8125 | L32: 0.84375 | M32: 0.875 | N32: 0.9375 | O32: 1 | P32: 1.125 | Q32: 1.0625 | R32: 0.78125 | S32: 0.4375 | T32: 1.5625
A33: 72 | B33: 0.2222222222 | C33: 0.25 | D33: 0.3333333333 | E33: 0.4444444444 | F33: 0.5 | G33: 0.5555555556 | H33: 0.6111111111 | I33: 0.6388888889 | J33: 0.6666666667 | K33: 0.7222222222 | L33: 0.75 | M33: 0.7777777778 | N33: 0.8333333333 | O33: 0.8888888889 | P33: 1 | Q33: 0.9444444444 | R33: 0.6944444444 | S33: 0.3888888889 | T33: 1.388888889
A34: 68 | B34: 0.2352941176 | C34: 0.2647058824 | D34: 0.3529411765 | E34: 0.4705882353 | F34: 0.5294117647 | G34: 0.5882352941 | H34: 0.6470588235 | I34: 0.6764705882 | J34: 0.7058823529 | K34: 0.7647058824 | L34: 0.7941176471 | M34: 0.8235294118 | N34: 0.8823529412 | O34: 0.9411764706 | P34: 1.058823529 | Q34: 1 | R34: 0.7352941176 | S34: 0.4117647059 | T34: 1.470588235
A35: 50 | B35: 0.32 | C35: 0.36 | D35: 0.48 | E35: 0.64 | F35: 0.72 | G35: 0.8 | H35: 0.88 | I35: 0.92 | J35: 0.96 | K35: 1.04 | L35: 1.08 | M35: 1.12 | N35: 1.2 | O35: 1.28 | P35: 1.44 | Q35: 1.36 | R35: 1 | S35: 0.56 | T35: 2
A36: 28 | B36: 0.5714285714 | C36: 0.6428571429 | D36: 0.8571428571 | E36: 1.142857143 | F36: 1.285714286 | G36: 1.428571429 | H36: 1.571428571 | I36: 1.642857143 | J36: 1.714285714 | K36: 1.857142857 | L36: 1.928571429 | M36: 2 | N36: 2.142857143 | O36: 2.285714286 | P36: 2.571428571 | Q36: 2.428571429 | R36: 1.785714286 | S36: 1 | T36: 3.571428571
A37: 100 | B37: 0.16 | C37: 0.18 | D37: 0.24 | E37: 0.32 | F37: 0.36 | G37: 0.4 | H37: 0.44 | I37: 0.46 | J37: 0.48 | K37: 0.52 | L37: 0.54 | M37: 0.56 | N37: 0.6 | O37: 0.64 | P37: 0.72 | Q37: 0.68 | R37: 0.5 | S37: 0.28 | T37: 1

Sheet Dividing Head
A1: Semi-Universal Dividing Head
B3: Main ratio | D3: 40 | E3: :1
B5: Dividing plates | G5: Desired division | I5: 6 | J5: parts | K5: =360/I5 -> 60 | L5: deg | M5: Cannot do:
G6: Crank turns | I6: =TRUNC(D3/I5, 0) -> 6 | J6: turns
I7: plus
B8: holes | C8: deg in | D8: deg out | E8: division | G8: tot. holes | I8: # of holes | M8: 51 | N8: 83
M9: 53 | N9: 87
B10: 15 | C10: =360/B10 -> 24 | D10: =(1/$D$3)*C10 -> 0.6 | E10: =360/D10 -> 600 | G10: =E10/$I$5 -> 100 | I10: =MOD($D$3/$I$5, 1)*B10 -> 10 | M10: 57 | N10: 89
B11: 16 | C11: 22.5 | D11: 0.5625 | E11: 640 | G11: 106.6666667 | I11: 10.66666667 | M11: 59 | N11: 91
B12: 17 | C12: 21.17647059 | D12: 0.5294117647 | E12: 680 | G12: 113.3333333 | I12: 11.33333333 | M12: 61 | N12: 93
B13: 18 | C13: 20 | D13: 0.5 | E13: 720 | G13: 120 | I13: 12 | M13: 63 | N13: 96
B14: 19 | C14: 18.94736842 | D14: 0.4736842105 | E14: 760 | G14: 126.6666667 | I14: 12.66666667 | M14: 67 | N14: 97
B15: 20 | C15: 18 | D15: 0.45 | E15: 800 | G15: 133.3333333 | I15: 13.33333333 | M15: 69 | N15: 99
M16: 71
B17: 21 | C17: =360/B17 -> 17.14285714 | D17: =(1/$D$3)*C17 -> 0.4285714286 | E17: =360/D17 -> 840 | G17: =E17/$I$5 -> 140 | I17: =MOD($D$3/$I$5, 1)*B17 -> 14 | M17: 73
B18: 23 | C18: 15.65217391 | D18: 0.3913043478 | E18: 920 | G18: 153.3333333 | I18: 15.33333333 | M18: 77
B19: 27 | C19: 13.33333333 | D19: 0.3333333333 | E19: 1080 | G19: 180 | I19: 18 | M19: 79
B20: 29 | C20: 12.4137931 | D20: 0.3103448276 | E20: 1160 | G20: 193.3333333 | I20: 19.33333333 | M20: 81
B21: 31 | C21: 11.61290323 | D21: 0.2903225806 | E21: 1240 | G21: 206.6666667 | I21: 20.66666667
B22: 33 | C22: 10.90909091 | D22: 0.2727272727 | E22: 1320 | G22: 220 | I22: 22
B24: 37 | C24: =360/B24 -> 9.72972973 | D24: =(1/$D$3)*C24 -> 0.2432432432 | E24: =360/D24 -> 1480 | G24: =E24/$I$5 -> 246.6666667 | I24: =MOD($D$3/$I$5, 1)*B24 -> 24.66666667
B25: 39 | C25: 9.230769231 | D25: 0.2307692308 | E25: 1560 | G25: 260 | I25: 26
B26: 41 | C26: 8.780487805 | D26: 0.2195121951 | E26: 1640 | G26: 273.3333333 | I26: 27.33333333
B27: 43 | C27: 8.372093023 | D27: 0.2093023256 | E27: 1720 | G27: 286.6666667 | I27: 28.66666667
B28: 47 | C28: 7.659574468 | D28: 0.1914893617 | E28: 1880 | G28: 313.3333333 | I28: 31.33333333
B29: 49 | C29: 7.346938776 | D29: 0.1836734694 | E29: 1960 | G29: 326.6666667 | I29: 32.66666667
B31: 54 | C31: =360/B31 -> 6.666666667 | D31: =(1/$D$3)*C31 -> 0.1666666667 | E31: =360/D31 -> 2160 | G31: =E31/$I$5 -> 360 | I31: =MOD($D$3/$I$5, 1)*B31 -> 36 | J31: user fab.
B32: 63 | C32: =360/B32 -> 5.714285714 | D32: =(1/$D$3)*C32 -> 0.1428571429 | E32: =360/D32 -> 2520 | G32: =E32/$I$5 -> 420 | I32: =MOD($D$3/$I$5, 1)*B32 -> 42 | J32: user fab.

Sheet Knurling
A1: Knurling
B11: Number of lines or cycles around the knurling tool | G11: 50
B12: Nominal diameter of knurl | G12: 0.75 | H12: in
B13: Diametrical pitch of knurl | G13: =G11/G12 -> 66.66666667
B14: Circular pitch on nominal diameter of knurl | G14: =PI()/G13 -> 0.0471238898 | H14: in | I14: =G14*25.4 -> 1.196946801 | J14: mm
B16: Blank diameter increments | G16: =1/G13 -> 0.015 | H16: in
B18: Desired blank diameter | G18: 1.485 | H18: in
B19: Division remainder | G19: =MOD(G18, G16) -> 1.526556659e-16 | H19: in
B21: Plus 1 line/cycle blank diameter | G21: =G22+G16 -> 1.5 | H21: in
B22: Nominal blank diameter | G22: =G18-G19 -> 1.485 | H22: in
B23: Minus 1 line/cycle blank diameter | G23: =G22-G16 -> 1.47 | H23: in
B24: Minus 2 line/cycle blank diameter | G24: =G22-G16-G16 -> 1.455 | H24: in
B33: Number of lines/cycles | G33: 75
B34: Distance over pattern of lines/cycles | G34: 3.535 | H34: in
B35: Circular pitch | G35: =G34/G33 -> 0.04713333333 | H35: in | I35: =G35*25.4 -> 1.197186667 | J35: mm
B36: Diametrical pitch | G36: =PI()/G35 -> 66.65330948
B38: Blank diameter increments | G38: =1/G36 -> 0.01500300597 | H38: in
B40: Desired blank diameter | G40: 0.625 | H40: in
B41: Division remainder | G41: =MOD(G40, G38) -> 0.009876755279 | H41: in
B43: Plus 1 line/cycle blank diameter | G43: =G44+G38 -> 0.6301262507 | H43: in
B44: Nominal blank diameter | G44: =G40-G41 -> 0.6151232447 | H44: in
B45: Minus 1 line/cycle blank diameter | G45: =G44-G38 -> 0.6001202388 | H45: in
B46: Minus 2 line/cycle blank diameter | G46: =G44-G38-G38 -> 0.5851172328 | H46: in

Sheet Cyl. Square
A1: Cylinderical Square Dimensions | H1: Rectangular Parallel Square Check
B3: Check the square: | I3: Check the square:
B4: Upper ring diameter | E4: 0.992 | F4: in | I4: Zero square comparator on side A | M4: 0 | N4: in
B5: Lower ring diameter | E5: 0.9922 | F5: in | I5: Measure side B | M5: 0.0003 | N5: in
B6: Difference per side | E6: =(E5-E4)/2 -> 0.0001 | F6: in | I6: Error is 1/2 | M6: =M5/2 -> 0.00015 | N6: in
B7: Length, ctr-ctr on rings | E7: 2.62 | F7: in | I7: Length, ctr-ctr of square comparator | M7: 4.5 | N7: in
B8: Error | E8: =DEGREES(ATAN(E6/E7)) -> 0.002186861812 | F8: degrees | I8: Angle | M8: =DEGREES(ATAN(M6/M7)) -> 0.001909859316 | N8: deg
E9: =E8*60 -> 0.1312117087 | F9: arc-min | M9: =M8*60 -> 0.114591559 | N9: arc-min
E10: =E8*3600 -> 7.872702525 | F10: arc-sec | M10: =M8*3600 -> 6.875493539 | N10: arc-sec
I11: Fix the square
B12: Use the square: | I12: error | M12: =M6/M7 -> 3.333333333e-05 | N12: in/in
B13: Gap at top or bottom | E13: 0.001 | F13: in | I13: length of base | M13: 1.763 | N13: in
B14: Height | E14: 5 | F14: in | I14: error over base to grind or lap | M14: =M12*M13 -> 5.876666667e-05 | N14: in
B15: Angle | E15: =DEGREES(ATAN(E13/E14)) -> 0.01145915575 | F15: deg
E16: =E15*60 -> 0.687549345 | F16: arc-min
E17: =E15*3600 -> 41.2529607 | F17: arc-sec
B19: Do it in reverse
B20: Length, ctr-ctr | E20: 4.5 | F20: in
B21: Angle | E21: 6.9 | F21: arc-sec
E22: =E21/60 -> 0.115 | F22: arc-min
E23: =E21/3600 -> 0.001916666667 | F23: deg
B24: Gap | E24: =TAN(RADIANS(E23))*E20 -> 0.000150534648 | F24: in

Sheet Sine Bar
A1: Sine Bar
B3: Distance between cylinders | F3: 2.1 | G3: in
B5: Desired angle | F5: 7.5 | G5: degrees
B7: Spacer or gage blocks | F7: =F3*SIN(RADIANS(F5)) -> 0.2741050037 | G7: in

Sheet Find Nominal
A1: Find the Nominal for Unsymmetrical Tolerances
B3: Use any units here, all positive | G3: If it was inches, here's metric | L3: If it was metric, here's inches
B5: Dimension | C5: Plus | D5: Minus | G5: Dimension | H5: Plus | I5: Minus | L5: Dimension | M5: Plus | N5: Minus
B6: 1 | C6: 0.1 | D6: 0.05 | G6: =B6*25.4 -> 25.4 | H6: =C6*25.4 -> 2.54 | I6: 1.27 | L6: =B6/25.4 -> 0.03937007874 | M6: =C6/25.4 -> 0.003937007874 | N6: 0.001968503937
B8: Nominal | C8: Plus | D8: Minus | G8: Nominal | H8: Plus | I8: Minus | L8: Nominal | M8: Plus | N8: Minus
B9: =(B6+C6)-C9 -> 1.025 | C9: =(C6+D6)/2 -> 0.075 | D9: =C9 -> 0.075 | G9: =B9*25.4 -> 26.035 | H9: 1.905 | I9: 1.905 | L9: =B9/25.4 -> 0.04035433071 | M9: 0.002952755906 | N9: 0.002952755906

Sheet Bolt Torque from Tensile
A1: Bolt Tensile Force vs. Torque
P9: Various SHCS
H10: SI | J10: enter here! | P10: #4-40 | Q10: #6-32 | R10: #8-32 | S10: #10-32 | T10: 1/4-20 | U10: M1.4
B11: Tensile force, F | G11: =J11*9.80665 -> 0.99047165 | H11: N | J11: 0.101 | K11: kgf | M11: =J11*2.20462262 -> 0.2226668846 | N11: lbf
B12: Thread pitch, P | G12: =J12/1000 -> 0.001 | H12: m | J12: 1 | K12: mm | M12: =J12/25.4 -> 0.03937007874 | N12: in | P12: 0.635 | Q12: 0.79375 | R12: 0.79375 | S12: 0.79375 | T12: 1.27 | U12: 0.3 | Y12: OD | Z12: 2.489
B13: COF int to ext threads, µT | G13: =J13 -> 0.2 | J13: 0.2 | Y13: ID | Z13: 1.4
B14: Effective radius of above, RT | G14: =J14/1000 -> 0.00060257 | H14: m | J14: 0.60257 | K14: mm | M14: =J14/25.4 -> 0.02372322835 | N14: in | S14: 2.1552 | U14: 0.60257 | Y14: Average | Z14: =AVERAGE(Z12, Z13) -> 1.9445
B15: Thread flank angle, α | G15: =J15 -> 30 | H15: ° | J15: 30 | K15: ° | Y15: Radius | Z15: =Z14/2 -> 0.97225
B16: COF fastener to bearing surface, µB | G16: =J16 -> 0 | J16: 0
B17: Effective radius of above, RB | G17: =J17/1000 -> 1e-06 | H17: m | J17: 0.001 | K17: mm | M17: =J17/25.4 -> 3.937007874e-05 | N17: in | S17: 3.048 | U17: 0.9215
B18: Total input torque, T1 | G18: =G11*((G12/(2*PI()))+(G13*G14/COS(RADIANS(G15)))+(G16*G17)) -> 0.0002954700976 | H18: N·m | J18: =G18*10197.162129779 -> 3.01295649 | K18: g·cm | M18: =G18*8.850745767 -> 0.002615130716 | N18: lb·in
M19: =G18*141.611932278 -> 0.04184209146 | N19: oz·in
B22: Number of bolts | M22: 22
B23: Area of clamped surface | M23: 1.7 | N23: in²
B24: Force | M24: =M11*M22 -> 4.898671462 | N24: lbf
B25: Force/area | M25: =M24/M23 -> 2.881571448 | N25: psi
B29: Test to get F from T1 | G29: =(G18-(G13*G14/COS(RADIANS(G15))))/(G12/(2*PI())) -> 0.9821405099

Sheet Gage Blocks
A1: Selecting Gage Blocks | C1: BIG WIP!
B4: Needed stack dimension | C4: 3.0613 | F4: Available gage blocks 81 pcs. | H4: Comments to automate
B6: Block to eliminate ten-thousandths digit | C6: 0.1003 | F6: .1001 to .1009 by .0001 | H6: match last digit or zero, subtract from total- this always works
B7: Difference | C7: =C4-C6 -> 2.961 | H7: note that set cannot go below 0.1"
B9: Block to eliminate thousandths digit | C9: 0.141 | F9: .101 to .149 by .001
B10: Difference | C10: =C7-C9 -> 2.82
B12: Block to eliminate hundredths digit | C12: 0.12 | H12: if digit isn't 0 or 5, adjust thou to make it so
B13: Difference | C13: =C10-C12 -> 2.7
B15: Block to eliminate tenths digit | C15: 0.7
B16: Difference | C16: =C13-C15 -> 2
B18: Block to eliminate inches | C18: 2 | H18: must be 2, 3 or 4- this always works
B19: Difference | C19: =C16-C18 -> 0 | F19: 0.05
F20: 0.1
C21: Done! | F21: .1001 to .1009 by .0001
F22: .101 to .149 by .001
F23: .15 to 1 by .05
F24: 2
F25: 3
F26: 4
B32: Dimension to stack | C32: 3.0613
B34: Block to eliminate inches | C34: 2 | F34: use 1" less then value
B35: Difference | C35: =$C$4-C34 -> 1.0613
B37: Block to eliminate tenths digit | C37: 0.7 | F37: do last?
B38: Difference | C38: =C35-C37 -> 0.3613
B40: Block to eliminate hundredths digit | C40: 0.16 | F40: use +0.1
B41: Difference | C41: =C38-C40 -> 0.2013
B43: Block to eliminate thousandths digit | C43: 0.101
B44: Difference | C44: =C41-C43 -> 0.1003
B46: Block to eliminate ten-thousandths digit | C46: 0.1003
B47: Difference | C47: =C44-C46 -> 1.665334537e-16

Sheet SFPM
A1: SFPM
B3: Cutter or work diameter | C3: 0.45 | D3: in
B4: RPM | C4: 205
B5: SFPM | C5: =(PI()*C3/12)*C4 -> 24.15099352 | E5: =C5*5.0799999 -> 122.6870447 | F5: mm/s
B9: SFPM | C9: 24.2 | E9: =C9*5.0799999 -> 122.9359976 | F9: mm/s
B10: RPM | C10: =C9/(C3*PI()*(1/12)) -> 205.4159799

Sheet Thd Length
A1: Minimum thread engagement
L7: Numbers from example
B8: ultimate strength, screw | C8: 621 | D8: Mpa | L8: 800
B9: yield point, screw | C9: 241 | D9: Mpa | L9: 640
B10: yield point, tapped hole | C10: 290 | D10: MPa | L10: 290
B11: ultimate strength, tapped hole | C11: 435 | D11: MPa | L11: 435
B12: nominal diameter | C12: 2 | D12: mm | L12: 16
B13: stress section | C13: 2.14759 | D13: mm^2 | L13: 156.7
B14: pitch | C14: 0.4 | D14: mm | L14: 2
B15: pitch diameter | C15: =C12-0.6495*C14 -> 1.7402 | D15: mm | L15: 14.701
B17: minimum engagement, tapped hole | C17: =(C8/C10)*(2*C13)/(0.6*PI()*C12) -> 2.439741717 | D17: mm | L17: 28.6662
B18: minimum engagement, screw | C18: =C8/C9*(2*C13)/(0.6*PI()*C15) -> 3.374082046 | D18: mm | L18: 14.1371
O33: pitch diameter | P33: 1.7402
O34: minor diameter | P34: 1.567
O35: H | P35: 0.3464
O36: AS | P36: =(PI()/4)*((P33+P34)/2)^2 -> 2.147587209

Sheet Sheet1
A1: Hertzian Contact Stress- 2 Spheres
D4: Sphere 1 | E4: Sphere 2 | P4: Matl. | Q4: Poisson's | R4: Young's | S4: Max. stress
B5: Poisson's ratio | D5: 0.29 | E5: 0.39 | P5: 420 SS | Q5: 0.24 | R5: 200 | S5: 1360
B6: Young's modulus, Gpa | D6: 386 | E6: 3.6 | P6: 440C SS | Q6: 0.29 | R6: 200 | S6: 1900
B7: Diameter, mm | D7: 3 | E7: 10000000000 | P7: 52100 bearing
B8: Force, N | E8: 2 | P8: Tantung "G" | Q8: 0.3 | R8: 265 | S8: 600
P9: 6061-T6 | Q9: 0.33 | R9: 68.9 | S9: 255
B10: Equivalent modulus, Ee | E10: =1/((1-D5^2)/(D6*1000000000)+(1-E5^2)/(E6*1000000000)) -> 4203436654 | F10: Pa | P10: C54400 Bronze | Q10: 0.32 | R10: 103 | S10: 303
B11: Equivalent radius, Re | E11: =1/((1/(D7/2/1000))+(1/(D7/2/1000))+(1/(E7/2/1000))+(1/(E7/2/1000))) -> 0.0007499999998 | F11: m | P11: Alumina 995 | Q11: 0.2 | R11: 370 | S11: 240
B12: Contact radius, a | E12: =((3*E8*E11)/(2*E10))^(1/3) -> 8.119438631e-05 | F12: m | G12: P | P12: Zirconia YZTP
B13: Contact radius, a | E13: =E12*1000000 -> 81.19438631 | F13: µm | G13: P | P13: Delrin, 150E | Q13: 0.35 | R13: 2.9 | S13: 69
B14: Contact diameter, 2a | E14: =2*E13 -> 162.3887726 | F14: µm | P14: Sapphire | Q14: 0.29 | R14: 386 | S14: 760
B15: Deflection, δ | E15: =0.5 * ((1/E11)^(1/3)) * (((3*E8)/(2*E10))^(2/3)) -> 4.395018914e-06 | F15: m | G15: P | P15: PEEK | Q15: 0.39 | R15: 3.6 | S15: 95
B16: Deflection, δ | E16: =E15*1000000000 -> 4395.018914 | F16: nm | G16: P
B17: Contact stress, q | E17: =0.000001*(E12*E10)/(PI()*E11) -> 144.8502919 | F17: MPa | G17: P
B18: Depth max shear, z | D18: =E12*SQRT((2*(1+D5))/(7-2*D5)) -> 5.147167989e-05 | E18: =E12*SQRT((2*(1+E5))/(7-2*E5)) -> 5.42816711e-05 | F18: m | G18: no
B19: Depth max shear, z | D19: =1000000*D18 -> 51.47167989 | E19: =1000000*E18 -> 54.2816711 | F19: µm | G19: no | H19: 19.16

Sheet Balancing I
B2: Single Plane Balancing

Sheet Balancing II
B1: Balancing Equations | G1: Enter data in red, results returned in blue cells
B3: The amplitude and mass can be in any units, as long as you are consistant.
B5: R0, amplitude, unbalanced | F5: 1.05 | G5: units | H5: Vibration amplitude reading at the rotational frequency only
B6: R1, amplitude w/ mass on reference line | F6: 0.92 | G6: units | H6: Same with an arbitrary mass added at an arbitrary zero line
B7: R2, amplitude w/ mass rotated positive | F7: 1.5 | G7: units | H7: This direction defines the positve angle, suggest 90 - 120 degrees from reference line
B8: R3, amplitude w/ mass rotated negative | F8: 0.95 | G8: units | H8: Shift the mass to the other side of the reference line by the same amount
B9: Angle mass was shifted from ref line | F9: 120 | G9: degrees | H9: 120 degrees is optimum as mass locations will be equally spaced for 3 runs
B11: X result | F11: =((2*F6^2)-(F7^2)-(F8^2))/((4*F5^2)*(1-COS(RADIANS(F9)))) -> -0.220665155
B12: Y result | F12: =((F7^2)-(F8^2))/((4*F5^2)*(SIN(RADIANS(F9)))) -> 0.3528251645
B13: U/T ratio of unbalance to test mass | F13: =1/SQRT(F11^2+F12^2) -> 2.40299437
B14: Test mass | F14: 2.35 | G14: units | H14: Could be grams, ounces or inches of adhesive weight strip
B15: Material to be removed or added | F15: =F13*F14 -> 5.647036769 | G15: units
B16: Angle of material removal | F16: =DEGREES(ATAN2(F11,F12)) -> 122.0228294 | G16: degrees | H16: Note we use ATAN2 here so the quadrants come out correctly
B17: Or, angle of material addition | F17: =IF(F16<>0, -SIGN(F16)*(180-ABS(F16)), 180) -> -57.97717063 | G17: degrees
B19: If a single removal or addition is not possible, say on a multi-bladed fan assembly, two balance weights can be calculated as follows:
B21: Angle away from nominal for mass 1 | F21: 30 | G21: degrees | I21: Angle 1 abs | K21: -60 | L21: degrees
B22: Angle other way from nominal for mass 2 | F22: 30 | G22: degrees | I22: Angle 2 abs | K22: -90 | L22: degrees
B23: Mass 1 | F23: =F15*((SIN(RADIANS(F22)))/(SIN(RADIANS(F21+F22)))) -> 3.260318198 | G23: units | I23: Mass 1 | L23: units
B24: Mass 2 | F24: =F15*((SIN(RADIANS(F21)))/(SIN(RADIANS(F21+F22)))) -> 3.260318198 | G24: units | I24: Mass 2 | L24: units

Sheet Vibration I
A1: Vibration Formulas, sinusoidal | F1: WIP- double check results!
B3: Pi Vibrometer reads in Velocity: mm/s time a range switch setting of 5, 25 or 125
B5: Reading in volts peak to peak | E5: 0.4 | F5: volts
B6: Range switch setting | E6: 25 | F6: X
B7: Velocity | E7: =E5*E6 -> 10 | F7: mm/s
B8: Velocity | E8: =E7/1000 -> 0.01 | F8: m/s
B9: Frequency, f | E9: 100 | F9: Hz
B10: Standard gravity, g | E10: 9.80665 | F10: m/s^2
B12: Displacement, Dp-p | E12: =E8/(PI()*E9) -> 3.183098862e-05 | F12: m
B13: Displacement, Dp-p | E13: =E12*1000000 -> 31.83098862 | F13: um
B15: Acceleration | E15: =(2*PI()*E9*E8) -> 6.283185307 | F15: m/s^2
B16: Acceleration | E16: =E15/E10 -> 0.6407065927 | F16: g
B20: Accelerometers read (duh!) acceleration: mm/s^2 or similar
B22: Acceleration | E22: 98.0665 | F22: m/s^2 | G22: =E22/E10 -> 10 | H22: g
B23: Frequency | E23: 5 | F23: Hz
B25: Displacement, Dp-p | E25: =(E22)/(2*PI()^2*E23^2) -> 0.1987242771 | F25: m | G25: =E25/0.0254 -> 7.823790438 | H25: in
B26: Displacement, Dp-p | E26: =E25*1000000 -> 198724.2771 | F26: um
B28: Velocity | E28: =PI()*E23*E25 -> 3.121553645 | F28: m/s | G28: =E28/0.0254 -> 122.8958128 | H28: in/s
B29: Velocity | E29: =E28*1000 -> 3121.553645 | F29: mm/s

Sheet Vibration II
C4: Harmonic Motion Speed and Acceleration | I4: MKS
C6: Frequency | F6: 333000 | G6: Hz
C7: Amplitude, p-p | F7: 2 | G7: um | I7: =F7/1000000 -> 2e-06 | J7: m
C9: omega | F9: =2*PI()*F6 -> 2092300.707 | G9: rad/sec
C10: Velocity at zero crossing | F10: =-(I7/2)*F9*SIN(F9*J10) -> 2.092300707 | G10: m/sec | I10: eval at t= | J10: =(1/F6)*0.75 -> 2.252252252e-06 | K10: sec (at zero crossing)
C11: Acceleration at peaks | F11: =-(I7/2)*F9^2*COS(F9*J11) -> 4377722.25 | G11: m/sec^2 | I11: eval at t= | J11: =(1/F6)*0.5 -> 1.501501502e-06 | K11: sec (at peak)
C14: Spring Mass Speed and Acceleration
C16: Mass | F16: 0.0057 | G16: grams | I16: =F16/1000 -> 5.7e-06 | J16: kg
C17: Force | F17: 5 | G17: grms f | I17: =F17*0.00980665 -> 0.04903325 | J17: N
C19: Acceleration | F19: =I17/I16 -> 8602.324561 | G19: m/sec^2 | I19: must be greater than above to remain in contact
C22: Resonant Frequency of Spring and Mass | L22: Static Deflection (uses stiffness at left)
C24: Mass | F24: 135 | G24: grams | I24: =F24/1000 -> 0.135 | J24: kg | L24: Force | N24: 5 | O24: grams
C25: Stiffness | I25: 75000 | J25: N/m
L26: Deflection | N26: =1000000*(N24*0.00980665)/I25 -> 0.6537766667 | O26: um
C27: omega | F27: =SQRT(I25/I24) -> 745.3559925 | G27: rad/sec
C28: Natural frequency | F28: =F27/(2*PI()) -> 118.6270906 | G28: Hz
C31: Wear Pad Mass | L31: Spring Compression Converter (k)
C33: diameter | F33: 0.1 | G33: in | L33: Force | M33: 454 | N33: grams
C34: thickness | F34: 0.032 | G34: in | L34: Distance | M34: 240 | N34: um | P34: 0.0025 | Q34: in =
C35: density | F35: 0.05 | G35: lbs/in^3 | P35: =P34*25400 -> 63.5 | Q35: um
L36: k | M36: =9806.65*M33/M34 -> 18550.91292 | N36: N/m
C37: area | F37: =PI()*(F33/2)^2 -> 0.007853981634 | G37: in^2
C38: volume | F38: =F37*F34 -> 0.0002513274123 | G38: in^3
C39: mass | F39: =F38*F35 -> 1.256637061e-05 | G39: lbs
C40: mass | F40: =F39*453.5924 -> 0.005700010206 | G40: grams | I40: =F40/1000 -> 5.700010206e-06 | J40: kg
C43: Wear Pad Density, squares
C45: length | F45: 0.18 | G45: in
C46: width | F46: 0.18 | G46: in
C47: thickness | F47: 0.063 | G47: in
C48: mass | F48: 0.0375 | G48: grams
C50: volume | F50: =F45*F46*F47 -> 0.0020412 | G50: in^3
C51: density | F51: =(F48*0.0022046)/F50 -> 0.04050191064 | G51: lbs/in^3

Sheet Taper Measurement
A1: Internal Taper Angle Measurement with Balls | G1: Enter data in blue cells, do not alter formula results in red cells.
B10: d1 | D10: 10.786 | E10: mm | F10: distance to a ball from the reference point
B11: d2 | D11: 11.535 | E11: mm | F11: distance to the other ball from the reference point- this must be the larger number!
B13: r1 | D13: 1.190625 | E13: mm | F13: radius of smaller ball
B14: r2 | D14: 1.5 | E14: mm | F14: radius of larger ball
B16: delta d | D16: =D11-D10 -> 0.749 | E16: mm | F16: height difference between OD of balls
B18: A | D18: =DEGREES(2*ASIN((D14-D13)/((D11-D10)+(D13-D14)))) -> 89.45322329 | E18: deg | F18: total included angle of taper

Sheet Beam Deflection
A1: Beam Deflection for Various Beams
D3: Round | J3: Rectangular | P3: Tube
B5: both ends supported | E5: 1 end supported | H5: both ends supported | K5: 1 end supported | N5: both ends supported | Q5: 1 end supported
B7: Length | C7: 12 | D7: in | E7: 12 | F7: in | H7: Length | I7: 12 | J7: in | K7: 0.984 | L7: in | N7: Length | O7: 12 | P7: in | Q7: 12 | R7: in
B8: Width | C8: =NA() ->  | E8: =NA() ->  | H8: Width | I8: 1 | J8: in | K8: 0.078 | L8: in | N8: OD | O8: 1 | P8: in | Q8: 1 | R8: in
B9: Height | C9: =NA() ->  | E9: =NA() ->  | H9: Height | I9: 1 | J9: in | K9: 0.00563 | L9: in | N9: ID | O9: 0.5 | P9: in | Q9: 0.5 | R9: in
B10: Modulus | C10: 30000000 | D10: psi | E10: 30000000 | F10: psi | H10: Modulus | I10: 30000000 | J10: psi | K10: 546000 | L10: psi | N10: Modulus | O10: 30000000 | P10: psi | Q10: 30000000 | R10: psi
B11: Diameter | C11: 0.5 | D11: in | E11: 0.5 | F11: in | H11: Diameter | I11: =NA() ->  | J11: in | K11: =NA() ->  | L11: in | N11: Diameter | O11: =NA() ->  | P11: in | Q11: =NA() ->  | R11: in
B12: Load | C12: 10 | D12: lbs (ctr) | E12: 5 | F12: lbs (end) | H12: Load | I12: 10 | J12: lbs (ctr) | K12: 0.0003291 | L12: lbs (end) | N12: Load | O12: 10 | P12: lbs (ctr) | Q12: 5 | R12: lbs (end)
B14: Deflection | C14: =(C12*C7^3)/(48*C10*C19) -> 0.003911391881 | D14: in | E14: =(E12*E7^3)/(3*E10*E19) -> 0.03129113505 | F14: in | H14: Deflection | I14: =(I12*I7^3)/(48*I10*I19) -> 0.000144 | J14: in | K14: =(K12*K7^3)/(3*K10*K19) -> 0.1650291789 | L14: in | N14: Deflection | O14: =(O12*O7^3)/(48*O10*O19) -> 0.0002607594588 | P14: in | Q14: =(Q12*Q7^3)/(3*Q10*Q19) -> 0.00208607567 | R14: in
B15: Resonance | C15: =NA() ->  | E15: =(0.5/PI())*SQRT((3*E10*E19*386)/(E12*E7^3)) -> 17.67677872 | F15: Hz | H15: Resonance | I15: =NA() ->  | K15: =(0.5/PI())*SQRT((3*K10*K19*386)/(K12*K7^3)) -> 7.697211402 | L15: Hz | N15: Resonance | O15: =NA() ->  | Q15: =(0.5/PI())*SQRT((3*Q10*Q19*386)/(Q12*Q7^3)) -> 68.46186961 | R15: Hz
B18: Intermediate results | H18: Intermediate results | N18: Intermediate results
B19: I | C19: =(PI()*C11^4)/64 -> 0.003067961576 | E19: =(PI()*E11^4)/64 -> 0.003067961576 | H19: I | I19: =(I8*I9^3)/12 -> 0.08333333333 | K19: =(K8*K9^3)/12 -> 1.159948055e-09 | N19: I | O19: =(PI()*(O8^4-O9^4))/64 -> 0.04601942364 | Q19: =(PI()*(Q8^4-Q9^4))/64 -> 0.04601942364
H20: H | I20: =I9/2 -> 0.5 | K20: =K9/2 -> 0.002815
B23: Modulus of Elasticity in Tension (X10^6 psi)
B25: Silicon Carbide | D25: 13-95
B26: Tungsten Carbide | D26: 65-94
B27: Alumina | D27: 30-50
B28: Steel | D28: 29-30
B29: Brass | D29: 15-18
B30: Aluminum (6000) | D30: 10
B31: Magnesium | D31: 6
B32: Wood/plastics | D32: 2008-01-03

Sheet Bungee
A1: Resonant Frequency of Suspended Mass on a Spring
C3: The spring is assumed linear and without mass.
C5: Spring deflection in inches | G5: 1 | H5: in
C6: Resonant frequency will be | G6: =(1/(2*PI()))*SQRT(9.81/(G5*0.0254)) -> 3.12779137 | H6: Hz

Sheet Compression- Round Wire
A1: Helical Compression Spring Designer | J1: Formulas from Machinery's Handbook, Shigley & Mischke, et al.
B3: Spring name here
B4: Spring OD | E4: 7.5 | F4: mm | G4: =E4/25.4 -> 0.2952755906 | H4: in | J4: mean diameter | L4: =E4-E5 -> 6.75 | M4: mm
B5: Wire diameter | E5: 0.75 | F5: mm | G5: =E5/25.4 -> 0.02952755906 | H5: in | J5: ID | L5: =E4-E5-E5 -> 6 | M5: mm | N5: =L5/25.4 -> 0.2362204724 | O5: in
B6: Number of active coils | E6: 11.5 | J6: Inactive coils | L6: 3
B7: Winding pitch | E7: 2.5 | F7: mm | G7: =E7/25.4 -> 0.09842519685 | H7: in
B8: Modulus of rigidity, G | E8: 79300 | F8: MPa | G8: =145.0377*E8 -> 11501489.61 | H8: psi | J8: Young's modulus, E | L8: 207000 | M8: Mpa | O8: Poisson's ratio, v | Q8: 0.305
B9: Tensile strength | E9: 1700 | F9: MPa | G9: =145.0377*E9 -> 246564.09 | H9: psi | J9: G, from above | L9: =L8/(2*(1+Q8)) -> 79310.34483 | M9: Mpa
B11: k | E11: =(E8*E5^4)/(8*L4^3*E6) -> 0.886786545 | F11: N/mm | G11: =E11*101.9716 -> 90.42704285 | H11: grams/mm
B12: Force at solid | E12: =(E22-E21)*E11 -> 17.84657922 | F12: N | G12: =E12*101.9716 -> 1819.844237 | H12: grams
B13: Spring index (5-9 typ, 15 max) | E13: =(E4-E5)/E5 -> 9
B14: Stress factor, Kw1 | E14: =((4*E13-1)/(4*E13-4))+(0.615/E13) -> 1.162083333
B15: Stress factor, Kw2 | E15: =1+(0.5/E13) -> 1.055555556
B16: Stress at solid | E16: =(8*E15*E12*L4)/(PI()*E5^3) -> 767.5314446 | F16: MPa | G16: =145.0377*E16 -> 111320.9954 | H16: psi
B17: Percentage of max stress | E17: =E16/E9 -> 0.451489085
B19: Ratio of pitch to mean diameter | E19: =E7/L4 -> 0.3703703704
B21: Solid length | E21: =(E6+L6)*E5 -> 10.875 | F21: mm | G21: =E21/25.4 -> 0.4281496063 | H21: in | J21: Inactive coils are added here
B22: Free length | E22: =(E6*E7)+(L6*E5) -> 31 | F22: mm | G22: =E22/25.4 -> 1.220472441 | H22: in | J22: and here
B24: Force at three compressions:
B25: Comp 1 | C25: 25.4 | D25: mm | E25: =(E22-C25)*G11 -> 506.39144 | F25: grams | G25: check if > solid length and < free length | K25: =E25/453.592 -> 1.116402935 | L25: lbs
B26: Comp 2 | C26: 3 | D26: mm | E26: =(E22-C26)*G11 -> 2531.9572 | F26: grams | G26: check if > solid length and < free length | K26: =E26/453.592 -> 5.582014674 | L26: lbs
B27: Comp 3 | C27: =NA() ->  | D27: mm | E27: =(E22-C27)*G11 ->  | F27: grams | L27: lbs
B29: Resonant frequency | E29: =(3.5*10^5*E5)/(L4^2*E6) -> 500.9840759 | F29: Hz
J30: Material Properties for Springs
L31: E | M31: G | N31: TS | O31: Poisson's
J32: Music wire | L32: 207000 | M32: 79300 | N32: 1700 | O32: 0.305
J33: C17200 BeCu | L33: 125000 | M33: 48300 | N33: 1030 | O33: 0.285
J34: Stainless, 302/304 | L34: 193000 | M34: 69000 | N34: 862 | O34: 0.29
J35: Fused Quartz | L35: 720000 | M35: 31000 | N35: 48* | O35: 0.17
J36: Phos bronze, 510 | L36: 103000 | M36: 43100 | N36: 724 | O36: 0.341

Sheet Compression- Rectangular Wire
A1: Helical Compression Spring Designer (Rectangular Wire) | J1: Formulas from Machinery's Handbook, Shigley & Mischke, et al.
B3: Spring OD | E3: 10 | F3: mm | G3: =E3/25.4 -> 0.3937007874 | H3: in | J3: mean diameter | L3: =E3-E6 -> 8.5 | M3: mm
B4: Spring ID | E4: 7 | F4: mm | G4: =E4/25.4 -> 0.2755905512 | H4: in
B5: Wire thickness (axial-b) | E5: 0.25 | F5: mm | G5: =E5/25.4 -> 0.009842519685 | H5: in | J5: Warning- this must be smaller than the next line!
B6: Wire width (radial-t) | E6: =(E3-E4)/2 -> 1.5 | F6: mm | G6: =E6/25.4 -> 0.05905511811 | H6: in
B7: Number of active coils | E7: 20
B8: Winding pitch | E8: 0.7 | F8: mm | G8: =E8/25.4 -> 0.02755905512 | H8: in | J8: worksheet assumes total of 3 inactive coils, 1.5 each end.
B9: Modulus (79300 for music wire) | E9: 79300 | F9: Mpa | J9: C17200 (Be Cu) is about 48300 (mine is .0055", too heavy)
B11: Torsion Constants for Rectangular Bar (this table not presently used but included for future additions)
B12: b/c ratio | C12: 1 | D12: 1.2 | E12: 1.5 | F12: 1.75 | G12: 2 | H12: 2.5 | I12: 3 | J12: 4 | K12: 5 | L12: 6 | M12: 8 | N12: 10 | O12: inf
B13: alpha 1 | C13: 0.208 | D13: 0.219 | E13: 0.231 | F13: 0.239 | G13: 0.246 | H13: 0.258 | I13: 0.267 | J13: 0.282 | K13: 0.291 | L13: 0.299 | M13: 0.307 | N13: 0.312 | O13: 0.333
B14: alpha 2 | C14: 0.208 | D14: 0.235 | E14: 0.269 | F14: 0.291 | G14: 0.309 | H14: 0.336 | I14: 0.355 | J14: 0.378 | K14: 0.392 | L14: 0.402 | M14: 0.414 | N14: 0.421
B15: beta | C15: 0.1406 | D15: 0.166 | E15: 0.196 | F15: 0.214 | G15: 0.229 | H15: 0.249 | I15: 0.263 | J15: 0.281 | K15: 0.291 | L15: 0.299 | M15: 0.307 | N15: 0.312 | O15: 0.333
B17: Shape Factor Table
B18: b/t | C18: 1 | E18: 1.5 | F18: 1.75 | G18: 2 | H18: 2.5 | I18: 3 | J18: 4 | L18: 6 | M18: 8 | N18: 10
B19: K1 | C19: 2.41 | E19: 2.16 | F19: 2.09 | G19: 2.04 | H19: 1.94 | I19: 1.87 | J19: 1.77 | L19: 1.67 | M19: 1.63 | N19: 1.6
B20: K2 | C20: 0.18 | E20: 0.25 | F20: 0.272 | G20: 0.292 | H20: 0.317 | I20: 0.335 | J20: 0.385 | L20: 0.381 | M20: 0.391 | N20: 0.399
B22: Actual b/t ratio | E22: =E6/E5 -> 6
B23: Select K1 from table | E23: 1.67
B24: Select K2 from table | E24: 0.381
B26: k | E26: =(E24*E9*E6*E5^3)/(E7*L3^3) -> 0.05765310147 | F26: N/mm | G26: =E26*101.9716 -> 5.878979001 | H26: grams/mm
B27: Force at solid | E27: =(E33-E32)*E26 -> 0.5188779132 | F27: N | G27: =E27*101.9716 -> 52.91081101 | H27: grams | J27: (not sure what happens when a machined spring goes "solid" but might not be good)
B28: Spring index (5-9 typ, 15 max) | E28: =L3/E6 -> 5.666666667
B29: Stress factor | E29: =1+(0.5/E28) -> 1.088235294 | J29: (need a new formula for this- don't use)
B30: Stress at solid (<10000 typ) | E30: =(8*E29*E27*L3)/(PI()*E5^3) -> 782.2165595 | J30: (this is no longer valid- fix or ignore)
B32: Solid length | E32: =(E7+3)*E5 -> 5.75 | F32: mm | G32: =E32/25.4 -> 0.2263779528 | H32: in
B33: Free length | E33: =(E7*E8)+(3*E5) -> 14.75 | F33: mm | G33: =E33/25.4 -> 0.5807086614 | H33: in
B36: Force at two compressions:
B37: Comp 1 | C37: 5.75 | D37: mm | E37: =(E33-C37)*G26 -> 52.91081101 | F37: grams | G37: check if ok for solid length
B38: Comp 2 | C38: 7.8 | D38: mm | E38: =(E33-C38)*G26 -> 40.85890406 | F38: grams | G38: check if ok for free length

Sheet Extension
A1: Helical Extension Spring Designer | F1: Formulas from Machinery's Handbook, Shigley & Mischke, et al.
B9: M3-LS-3.4 Spring | Q9: convert-
B10: Spring OD | E10: 1.981 | F10: mm | G10: =E10/25.4 -> 0.07799212598 | H10: in | J10: Mean diameter | L10: =E10-E11 -> 1.8032 | M10: mm | N10: =L10/25.4 -> 0.07099212598 | O10: in | Q10: psi | R10: MPa
B11: Wire OD | E11: 0.1778 | F11: mm | G11: =E11/25.4 -> 0.007 | H11: in | J11: ID | L11: =E10-E11-E11 -> 1.6254 | M11: mm | N11: =L11/25.4 -> 0.06399212598 | O11: in | Q11: 399000 | R11: =Q11/145.037738 -> 2751.008155
B12: Number of active coils | E12: 50
B13: Length of active coils | E13: =E11*(E12+1) -> 9.0678 | F13: mm | G13: =E13/25.4 -> 0.357 | H13: in
B15: Modulus of Rigidity (Shear) | E15: 69000 | F15: MPa | G15: =E15*145.037738 -> 10007603.92 | H15: psi | J15: Materials | K15: music wire | L15: 302/304 SS | M15: 17-7 SS | N15: C17200 | O15: 316 SS | P15: other | Q15: other
B16: Tensile strength | E16: 2200 | F16: MPa | G16: =E16*145.037738 -> 319083.0236 | H16: psi | J16: Modulus of Rigidity | K16: 79300 | L16: 69000 | M16: 75800 | N16: 48300 | O16: 69000
J17: Tensile Strength | K17: 2700 | L17: 2200 | M17: 2300 | N17: 1500 | O17: 1520
B18: k | E18: =(E15*E11^4)/(8*L10^3*E12) -> 0.02940251159 | F18: N/mm | G18: =E18*101.9716 -> 2.998221151 | H18: grams/mm | J18: Max in bending | K18: 0.75 | L18: 0.75 | M18: 0.75 | N18: 0.75 | O18: 0.75
J19: Max in torsion | K19: 0.45 | L19: 0.4 | M19: 0.45 | N19: 0.4 | O19: 0.4
B20: Initial tension stress target | E20: =231/(10^(0.0456*E23)) -> 79.64325253 | F20: Mpa | G20: =E20*145.037738 -> 11551.27719 | H20: psi | J20: Insert values
B21: Initial tension from above | E21: =(PI()*E20*E11^3)/(8*L10) -> 0.09749003912 | F21: N | G21: =E21*101.9716 -> 9.941215273 | H21: grams
B22: Initial tension actual | E22: =G22/101.9716 -> 0.09806652048 | F22: N | G22: 10 | H22: grams
B23: Spring index | E23: =(E10-E11)/E11 -> 10.14173228
B24: Wahl correction factor | E24: =((4*E23-1)/(4*E23-4))+(0.615/E23) -> 1.142681872
B26: Free length, c-c | E26: =E13+(E10/2)+(E10/2) -> 11.0488 | F26: mm | G26: =E26/25.4 -> 0.434992126 | H26: in
B27: Free length, inside ends | E27: =E26+(L11/2)+(L11/2) -> 12.6742 | F27: mm | G27: =E27/25.4 -> 0.498984252 | H27: in
B29: Force at two center-to-center distances:
B30: c-c 1 | C30: 0 | D30: mm | E30: =(E18*(C30-E26))+E22 -> -0.2267959496 | F30: N | G30: =E30*101.9716 -> -23.12674585 | H30: grams
B31: c-c 2 | C31: 0 | D31: mm | E31: =(E18*(C31-E26))+E22 -> -0.2267959496 | F31: N | G31: =E31*101.9716 -> -23.12674585 | H31: grams
B33: Force at two inside contact distances of loops:
B34: 1 | C34: 22.5 | D34: mm | E34: =(E18*(C34-E27))+E22 -> 0.3869697189 | F34: N | G34: =E34*101.9716 -> 39.45992138 | H34: grams
B35: 2 | C35: 37.5 | D35: mm | E35: =(E18*(C35-E27))+E22 -> 0.8280073927 | F35: N | G35: =E35*101.9716 -> 84.43323865 | H35: grams
B37: Stress at contact distance 2 | E37: =(8*E35*L10*E24)/(PI()*E11^3) -> 772.9444709 | F37: MPa | G37: =E37*145.037738 -> 112106.1177 | H37: psi
B38: Percentage of max stress | E38: =E37/E16 -> 0.3513383959 | G38: =G37/G16 -> 0.3513383959 | J38: Should not exceed: | K38: 0.4
B40: Force at two deflections from solid:
B41: Def 1 | C41: 0 | D41: mm | E41: =(E18*C41)+E22 -> 0.09806652048 | F41: N | G41: =E41*101.9716 -> 10 | H41: grams
B42: Def 2 | C42: 0 | D42: mm | E42: =(E18*C42)+E22 -> 0.09806652048 | F42: N | G42: =E42*101.9716 -> 10 | H42: grams
B44: Stress at Def 2 | E44: =(8*E42*L10*E24)/(PI()*E11^3) -> 91.54504592 | F44: MPa | G44: =E44*145.037738 -> 13277.48638 | H44: psi
B45: Percentage of max stress | E45: =E44/E16 -> 0.04161138451 | G45: =G44/G16 -> 0.04161138451 | J45: Should not exceed: | K45: 0.4
B47: Resonant frequency | E47: =(176000*E11)/(L10^2*E12) -> 192.4804488 | F47: Hz | G47: =1000/E47 -> 5.195332856 | H47: mS
B49: Hook/Loop Stress
B51: Radius of first bend off coil, R2 | E51: 0.4 | F51: mm | G51: =E51/25.4 -> 0.0157480315 | H51: in
B52: C2 | E52: =(2*E51)/E11 -> 4.49943757 | G52: =(2*G51)/G11 -> 4.49943757
B53: Kb | E53: =(4*E52-1)/(4*E52-4) -> 1.214320154 | G53: =(4*G52-1)/(4*G52-4) -> 1.214320154
B54: Torsion stress at B | E54: =E53*((8*E35*L10)/(PI()*E11^3)) -> 821.4027652 | F54: Mpa | G54: =E54*145.037738 -> 119134.3991 | H54: psi
B55: Percentage of max stress | E55: =E54/E16 -> 0.3733648933 | G55: =G54/G16 -> 0.3733648933 | J55: Should not exceed: | K55: 0.4
B57: Radius of hook, R1 | E57: 0.9 | F57: mm | G57: =E57/25.4 -> 0.03543307087 | H57: in
B58: C1 | E58: =(2*E57)/E11 -> 10.12373453 | G58: =(2*G57)/G11 -> 10.12373453
B59: Ka | E59: =(4*E58^2-E58-1)/(4*E58*(E58-1)) -> 1.079496565 | G59: =(4*G58^2-G58-1)/(4*G58*(G58-1)) -> 1.079496565
B60: Bending stress at A | E60: =E35*(E59*((16*L10)/(PI()*E11^3))+(4/(PI()*E11^2))) -> 1493.756896 | F60: Mpa | G60: =E60*145.037738 -> 216651.1212 | H60: psi
B61: Percentage of max stress | E61: =E60/E16 -> 0.6789804071 | G61: =G60/G16 -> 0.6789804071 | J61: Should not exceed: | K61: 0.75
B73: Arbor Selection for Winding
B75: Start with | D75: =$L$10-(2*$E$11) -> 1.4476 | E75: mm | F75: =D75/25.4 -> 0.05699212598 | G75: in
B76: Will typically be a bit smaller for high index springs.

Sheet Torsion
A1: Torsion Spring Designer
B3: Spring OD | E3: 3.5 | F3: mm | G3: =E3/25.4 -> 0.1377952756 | H3: in | J3: mean diameter | L3: =E3-E4 -> 3.246 | M3: mm
B4: Wire diameter | E4: 0.254 | F4: mm | G4: =E4/25.4 -> 0.01 | H4: in | J4: ID | L4: =E3-E4-E4 -> 2.992 | M4: mm | N4: =L4/25.4 -> 0.1177952756 | O4: in
B5: Body coils | E5: 3
B6: End length 1 | E6: 6 | F6: mm | G6: =E6/25.4 -> 0.2362204724
B7: End length 2 | E7: 6 | F7: mm | G7: =E7/25.4 -> 0.2362204724
B8: Total coils | E8: =E5+((E6+E7)/(3*PI()*E3)) -> 3.363782727
B9: Modulus (79300 for music wire) | E9: 79300 | F9: Mpa | J9: C17200 (Be Cu) is about 48300 (mine is .0055")
B11: k (moment/turn) | E11: =(E9*E4^4)/(10.8*L3*E8) -> 2.799031891 | F11: N * mm
B12: turns | E12: 0.25
B13: force | E13: =(E11*E12)/E6 -> 0.1166263288 | F13: N
E14: =E13*101.9716 -> 11.89257335 | F14: grams

Sheet Wave Washers
A1: Wave Washer Calculator
B3: OD, D | F3: =I3*25.4 -> 26.9748 | G3: mm | I3: 1.062 | J3: in
B4: ID, d | F4: =I4*25.4 -> 19.1008 | G4: mm | I4: 0.752 | J4: in
B5: average diameter, Dm | F5: 23.0378 | G5: mm | I5: =(I3+I4)/2 -> 0.907 | J5: in
B6: rim width, b | F6: 3.937 | G6: mm | I6: =(I3-I4)/2 -> 0.155 | J6: in
B7: number of waves, N | F7: 3
B8: modulus of elasticity, E | F8: 206000 | G8: N/mm²
B9: thickness, t | F9: =I9*25.4 -> 0.381 | G9: mm | I9: 0.015 | J9: in
B10: deflection, δ | F10: 0.254 | G10: mm | I10: 0.01 | J10: in
B11: load, P | F11: =(16*F8*F6*F9^3*F7^4*F10)/(PI()^3*F5^3) -> 38.94696777 | G11: N | I11: =0.2248089*F11 -> 8.755624984 | J11: lbf
B12: Stress, S | F12: =(0.75*PI()*F11*F5)/(F6*F9^2*F7^2) -> 411.0246947 | G12: N/mm² | I12: =145.03773800722*F12 -> 59614.09198 | J12: psi
B13: k | F13: =F11/F10 -> 153.3345188 | G13: N/mm | I13: =F13/0.17513 -> 875.546844 | J13: lbf/in

Sheet Flats
A1: Optical Flat Measurements in the Shop
B3: Lamp wavelength | F3: 5.461e-07 | G3: m | H3: (the Unilamp is 5461 angstroms or 546.1 nm)
B5: # of fringes seen | F5: 0.5
B7: height variation | F7: =0.5*F3*F5 -> 1.36525e-07 | G7: m
F8: =F7*1000000 -> 0.136525 | G8: um | H8: hard to resolve better than 1/2 fringe, so 0.14 um is about the limit
F9: =F7*39.37 -> 5.37498925e-06 | G9: in
A12: Lapping plate flatness measurements with indicator gauge and test bar
B14: Gauge contact point distance | F14: 11 | G14: in
B15: Indicator distance from edge | F15: 3.75 | G15: in
B16: Reading (+ or -) | F16: 5e-05 | G16: in | H16: Mostly you will enter this number- best gage reads in increments of 0.00005"
B18: X1 | C18: 0 | D18: Y1 | E18: 1 | G18: left-most point of gauge arbitrairly set to 0,1 to avoid divide by zero error
B19: X2 | C19: =F15 -> 3.75 | D19: Y2 | E19: =F16+E18 -> 1.00005 | G19: dial indicator is x inches in and y is the reading, corrected for above offset of 1
B20: X3 | C20: =F14 -> 11 | D20: Y3 | E20: =E18 -> 1 | G20: right-most point of gauge is in the same plane as the first and x inches away
B22: A | C22: =C18*(E19-E20)-E18*(C19-C20)+C19*E20-C20*E19 -> -0.00055
B23: B | C23: =(C18^2+E18^2)*(E20-E19)+(C19^2+E19^2)*(E18-E20)+(C20^2+E20^2)*(E19-E18) -> 0.00605
B24: C | C24: =(C18^2+E18^2)*(C19-C20)+(C19^2+E19^2)*(C20-C18)+(C20^2+E20^2)*(C18-C19) -> -299.0614
B25: D | C25: =(C18^2+E18^2)*(C20*E19-C19*E20)+(C19^2+E19^2)*(C18*E20-C20*E18)+(C20^2+E20^2)*(C19*E18-C18*E19) -> 299.06195
B27: center of circle
B28: x | C28: =-C23/(2*C22) -> 5.5 | D28: y | E28: =-C24/(2*C22) -> -271874
B30: radius of circle
B31: r | C31: =SQRT((C23^2+C24^2-4*C22*C25)/(4*C22^2)) -> 271875 | D31: in
C32: =C31/12 -> 22656.25 | D32: feet
C33: =C31/12/5280 -> 4.29095644 | D33: miles | F33: this is just to put things into perspective when you complain it isn't flat enough.
A36: Parallelism- not a function of the planetary lapping machine, but commonly needed and measured with the autocollimator
B38: Error | C38: 0.5 | D38: minutes | F38: autocollimator range is plus and minus 15 minutes of angle
B39: Baseline | C39: 20 | D39: mm
B40: Error | C40: =C38/60 -> 0.008333333333 | D40: deg | F40: interestingly, the autocollimator is about 10X the accuracy of the Keyence 3-laser system
B41: Height | C41: =TAN(RADIANS(C38/60))*C39*1000 -> 2.908882107 | D41: um
B42: Height | C42: =C41/25400 -> 0.0001145229176 | D42: in
B44: Or, going the other way
B46: Error | C46: 0.000115 | D46: in | F46: error at the edge of the baseline, usually measured with a mic
B47: Error | C47: =C46*25400 -> 2.921 | D47: um
B48: Baseline | C48: 20 | D48: mm
B49: Angle | C49: =90-DEGREES(ATAN(C48/C47*1000)) -> 0.008368048538 | D49: deg
B50: Angle | C50: =C49*60 -> 0.5020829123 | D50: minutes

Sheet Drop Tests
A1: Drop Testing
K2: gravity | M2: 32.16 | N2: ft/sec^2 | O2: fps
D3: fps | G3: cgs | K3: gravity | M3: 980.665 | N3: cm/sec^2 | O3: cgs
B4: Drop height | D4: 2 | E4: ft | G4: =D4*12*2.54 -> 60.96 | H4: cm
B5: Mass | D5: =G5/453.59237 -> 0.1102311311 | E5: pounds | G5: 50 | H5: grams | K5: 1 pound of force = 32 poundals
B6: Time of flight | D6: =SQRT((2*D4)/M2) -> 0.3526728079 | E6: sec | G6: =SQRT((2*G4)/M3) -> 0.3525958036 | H6: sec | K6: 1 gram of force = 980 dynes
B7: Velocity on impact | D7: =SQRT(2*M2*D4) -> 11.3419575 | E7: ft/sec | G7: =SQRT(2*M3*G4) -> 345.7783637 | H7: cm/sec | K7: 1 dyne-cm = 1 erg
B8: Velocity on impact | D8: =D7*12 -> 136.10349 | E8: in/sec | G8: =G7/100 -> 3.457783637 | H8: m/sec
B9: Energy on impact | D9: =(D5*D7^2)/2 -> 7.090066352 | E9: ft-pdl | G9: =(G5*G7^2)/2 -> 2989066.92 | H9: dyne-cm
B10: Energy on impact | D10: =(D5*D7^2)/(2*M2) -> 0.2204622622 | E10: ft-lb | G10: =(G5*G7^2)/(2*M3) -> 3048 | H10: gram-cm
B12: Decel distance | D12: 0.096 | E12: in | G12: =D12*2.54 -> 0.24384 | H12: cm
B13: Decel distance | D13: =D12/12 -> 0.008 | E13: ft
B14: Decel | D14: =D7^2/(2*D13) -> 8040 | E14: ft/sec^2 | G14: =G7^2/(2*G12) -> 245166.25 | H14: cm/sec^2
B15: g value | D15: =D14/M2 -> 250 | G15: =G14/M3 -> 250
B17: force on impact | D17: =D5*D14 -> 886.258294 | E17: pdl | G17: =G5*G14 -> 12258312.5 | H17: dynes
B18: force on impact | D18: =D17/M2 -> 27.55778277 | E18: pounds | G18: =G17/M3/1000 -> 12.5 | H18: kg
B20: You can bypass the standard formulas since the target g force and the drop height in inches are known. 5/3500=.0014 (the decel distance).
B21: 3500*.249=871 (the force on impact)

Sheet TT Counterweights
A1: Counterweights
C2: in | D2: m | E2: cm | F2: mm
B3: OD | C3: 0.49 | D3: =C3*0.0254 -> 0.012446 | E3: =C3*2.54 -> 1.2446 | F3: =C3*25.4 -> 12.446 | J3: material | K3: density
B4: ID | C4: 0.115 | D4: =C4*0.0254 -> 0.002921 | E4: =C4*2.54 -> 0.2921 | F4: =C4*25.4 -> 2.921
B5: T | C5: 0.26 | D5: =C5*0.0254 -> 0.006604 | E5: =C5*2.54 -> 0.6604 | F5: =C5*25.4 -> 6.604 | J5: aluminum | K5: 2720
J6: steel | K6: 7850
B7: Outer volume | C7: =C5*PI()*(C3/2)^2 -> 0.04902926575 | D7: =D5*PI()*(D3/2)^2 -> 8.034457157e-07 | E7: =E5*PI()*(E3/2)^2 -> 0.8034457157 | F7: =F5*PI()*(F3/2)^2 -> 803.4457157 | J7: brass | K7: 8460
B8: Inner volume | C8: =C5*PI()*(C4/2)^2 -> 0.002700591585 | D8: =D5*PI()*(D4/2)^2 -> 4.425476714e-08 | E8: =E5*PI()*(E4/2)^2 -> 0.04425476714 | F8: =F5*PI()*(F4/2)^2 -> 44.25476714 | J8: bronze, 544 | K8: 8810
B9: Total volume | C9: =C7-C8 -> 0.04632867416 | D9: =D7-D8 -> 7.591909486e-07 | E9: =E7-E8 -> 0.7591909486 | F9: =F7-F8 -> 759.1909486 | J9: magnesium | K9: 1738
J10: Delrin | K10: 1183
C11: lbs/ft^3 | D11: kg/m^3 | E11: g/cm^3 | J11: lead | K11: 11340
B12: material density | C12: =D12*0.062427965 -> 549.9903717 | D12: 8810 | E12: =D12/1000 -> 8.81 | J12: copper | K12: 8940
J13: gold | K13: 19320
C14: lbs | D14: kg | E14: g | J14: mercury | K14: 13593
B15: mass | C15: =D15*2.20462 -> 0.01474553971 | D15: =D9*D12 -> 0.006688472257 | E15: =D15*1000 -> 6.688472257 | J15: nickel | K15: 8908
J16: silver | K16: 10490
C17: in | D17: m | E17: cm | F17: mm | J17: tungsten | K17: 19300
B18: Distance to beam | C18: 0.697 | D18: =C18*0.0254 -> 0.0177038 | E18: =C18*2.54 -> 1.77038 | F18: =C18*25.4 -> 17.7038 | J18: sapphire | K18: 3980
C20: in-lbs | E20: gm-cm | G20: mN-m | H20: uN-m
B21: Torque @ 90 horiz | C21: =C18*C15 -> 0.01027764118 | E21: =E15*E18 -> 11.84113751 | G21: =E21*0.0980665 -> 1.161218912 | H21: =G21*1000 -> 1161.218912
B23: Enter angle | C23: 45 | D23: degrees
B25: Sine | C25: =SIN(RADIANS(C23)) -> 0.7071067812
G26: mN-m | H26: uN-m
B27: Torque | C27: =C21*C25 -> 0.00726738977 | E27: =E21*C25 -> 8.372948633 | G27: =G21*C25 -> 0.8211057671 | H27: =H21*C25 -> 821.1057671
A31: Platters (Flywheels), counterweights & general cylinder mass problems
C33: in | D33: m | E33: cm | F33: mm
B34: OD | C34: 1.75 | D34: =C34*0.0254 -> 0.04445 | E34: =C34*2.54 -> 4.445 | F34: =C34*25.4 -> 44.45
B35: ID | C35: 0.9375 | D35: =C35*0.0254 -> 0.0238125 | E35: =C35*2.54 -> 2.38125 | F35: =C35*25.4 -> 23.8125
B36: T | C36: 0.75 | D36: =C36*0.0254 -> 0.01905 | E36: =C36*2.54 -> 1.905 | F36: =C36*25.4 -> 19.05
B38: Outer volume | C38: =C36*PI()*(C34/2)^2 -> 1.803961407 | D38: =D36*PI()*(D34/2)^2 -> 2.956163102e-05 | E38: =E36*PI()*(E34/2)^2 -> 29.56163102 | F38: =F36*PI()*(F34/2)^2 -> 29561.63102
B39: Inner volume | C39: =C36*PI()*(C35/2)^2 -> 0.5177185159 | D39: =D36*PI()*(D35/2)^2 -> 8.483886454e-06 | E39: =E36*PI()*(E35/2)^2 -> 8.483886454 | F39: =F36*PI()*(F35/2)^2 -> 8483.886454
B40: Total volume | C40: =C38-C39 -> 1.286242891 | D40: =D38-D39 -> 2.107774457e-05 | E40: =E38-E39 -> 21.07774457 | F40: =F38-F39 -> 21077.74457
C42: lbs/ft^3 | D42: kg/m^3 | E42: g/cm^3
B43: material density | C43: =D43*0.062427965 -> 169.8040648 | D43: 2720 | E43: =D43/1000 -> 2.72
J44: M3-F Target
C45: lbs | D45: kg | E45: g
B46: mass | C46: =D46*2.20462 -> 0.1263940949 | D46: =D43*D40 -> 0.05733146523 | E46: =D46*1000 -> 57.33146523 | J46: top ring | K46: 4.704 | L46: g
J47: threaded end | K47: 1.244 | L47: g
B48: Speed | C48: 33.3333 | D48: RPM | E48: =C48/60 -> 0.555555 | F48: RPS | G48: =1/E48 -> 1.8000018 | H48: SPR | J48: total mass | K48: =K46+K47 -> 5.948 | L48: g
B49: w | C49: =2*PI()*E48 -> 3.490655013 | D49: rad/S | J49: target | K49: 5 | L49: g
J50: remove | K50: =K48-K49 -> 0.948 | L50: g
B51: Moment of inertia | C51: =0.5*D46*((D34/2)^2 + (D35/2)^2) -> 1.822307608e-05 | D51: kg-m^2
B53: Stored energy | C53: =0.5*C51*C49^2 -> 0.0001110211063 | D53: J
A61: Anti-Skate Weights (cylinders with hole and counterbore)
C63: in | D63: m | E63: cm | F63: mm
B64: OD | C64: 0.345 | D64: =C64*0.0254 -> 0.008763 | E64: =C64*2.54 -> 0.8763 | F64: =C64*25.4 -> 8.763
B65: ID | C65: 0.161 | D65: =C65*0.0254 -> 0.0040894 | E65: =C65*2.54 -> 0.40894 | F65: =C65*25.4 -> 4.0894
B66: T | C66: 0.338 | D66: =C66*0.0254 -> 0.0085852 | E66: =C66*2.54 -> 0.85852 | F66: =C66*25.4 -> 8.5852
B68: Outer volume | C68: =C66*PI()*(C64/2)^2 -> 0.03159692154 | D68: =D66*PI()*(D64/2)^2 -> 5.177807755e-07 | E68: =E66*PI()*(E64/2)^2 -> 0.5177807755 | F68: =F66*PI()*(F64/2)^2 -> 517.7807755
B69: Inner volume | C69: =C66*PI()*(C65/2)^2 -> 0.006881107358 | D69: =D66*PI()*(D65/2)^2 -> 1.127611467e-07 | E69: =E66*PI()*(E65/2)^2 -> 0.1127611467 | F69: =F66*PI()*(F65/2)^2 -> 112.7611467
B70: Total volume 1 | C70: =C68-C69 -> 0.02471581418 | D70: =D68-D69 -> 4.050196289e-07 | E70: =E68-E69 -> 0.4050196289 | F70: =F68-F69 -> 405.0196289
B72: C-Bore diameter | C72: 0 | D72: =C72*0.0254 -> 0 | E72: =C72*2.54 -> 0 | F72: =C72*25.4 -> 0
B73: Phantom ID | C73: =C65 -> 0.161 | D73: =C73*0.0254 -> 0.0040894 | E73: =C73*2.54 -> 0.40894 | F73: =C73*25.4 -> 4.0894
B74: C-Bore depth | C74: 0 | D74: =C74*0.0254 -> 0 | E74: =C74*2.54 -> 0 | F74: =C74*25.4 -> 0
B76: Outer volume | C76: =C74*PI()*(C72/2)^2 -> 0 | D76: =D74*PI()*(D72/2)^2 -> 0 | E76: =E74*PI()*(E72/2)^2 -> 0 | F76: =F74*PI()*(F72/2)^2 -> 0
B77: Inner volume | C77: =C74*PI()*(C73/2)^2 -> 0 | D77: =D74*PI()*(D73/2)^2 -> 0 | E77: =E74*PI()*(E73/2)^2 -> 0 | F77: =F74*PI()*(F73/2)^2 -> 0
B78: Total volume 2 | C78: =C76-C77 -> 0 | D78: =D76-D77 -> 0 | E78: =E76-E77 -> 0 | F78: =F76-F77 -> 0
B80: Total volume | C80: =C70-C78 -> 0.02471581418 | D80: =D70-D78 -> 4.050196289e-07 | E80: =E70-E78 -> 0.4050196289 | F80: =F70-F78 -> 405.0196289
C82: lbs/ft^3 | D82: kg/m^3 | E82: g/cm^3
B83: material density | C83: =D83*0.062427965 -> 530.6377025 | D83: 8500 | E83: =D83/1000 -> 8.5
C85: lbs | D85: kg | E85: g
B86: mass | C86: =D86*2.20462 -> 0.00758977218 | D86: =D83*D80 -> 0.003442666845 | E86: =D86*1000 -> 3.442666845

Sheet Barometric Pressure
A1: Barometric Pressure | F1: Entries in blue, results in red.
R5: Pressure, in | S5: Corrected, mb
R7: 30.2 | S7: =(R7*33.86389)*EXP(-$K$17/($K$18*$K$23)) -> 1002.960731
R8: =R7-0.05 -> 30.15 | S8: =(R8*33.86389)*EXP(-$K$17/($K$18*$K$23)) -> 1001.3002
R9: =R8-0.05 -> 30.1 | S9: 999.6396691
R10: 30.05 | S10: 997.9791381
R11: 30 | S11: 996.3186071
R12: 29.95 | S12: 994.6580761
R13: 29.9 | S13: =(R13*33.86389)*EXP(-$K$17/($K$18*$K$23)) -> 992.9975451
R14: 29.85 | S14: 991.3370141
R15: 29.8 | S15: 989.6764831
B16: Sea level referenced barometric pressure | H16: 30.08 | I16: in hg | K16: =H16*33.86389 -> 1018.625811 | L16: mb | R16: 29.75 | S16: 988.0159521
B17: Altitude | H17: 561 | I17: ft | K17: =H17*12*0.0254 -> 170.9928 | L17: m | R17: 29.7 | S17: 986.355421
B18: Temperature (outdoor average air column) | H18: 80 | I18: F | K18: =CONVERT(H18,"F","C")+273.15 -> 299.8166667 | L18: K | R18: 29.65 | S18: 984.69489
R19: 29.6 | S19: 983.034359
B20: Molar gas constant | K20: 8.314 | L20: J/mole/K | R20: 29.55 | S20: 981.373828
B21: Molecular weight of air | K21: 28.9565 | L21: g/mole | R21: 29.5 | S21: 979.713297
B22: Gravity | K22: 9.80665 | L22: m/s² | R22: 29.45 | S22: 978.052766
B23: Constant | K23: =(1000*K20)/(K21*K22) -> 29.27812614 | L23: m/K | R23: 29.4 | S23: 976.392235
R24: 29.35 | S24: 974.731704
B25: Local barometric pressure (aka station pressure) | K25: =K16*EXP(-K17/(K18*K23)) -> 998.9754567 | L25: mb | R25: 29.3 | S25: 973.0711729
R26: 29.25 | S26: 971.4106419
R27: 29.2 | S27: 969.7501109
B28: Sea level psi | K28: =K16*0.0145037738 -> 14.77391835 | L28: psi | R28: 29.15 | S28: 968.0895799
B29: Local psi | K29: =K25*0.0145037738 -> 14.48891406 | L29: psi | R29: 29.1 | S29: 966.4290489
R30: 29.05 | S30: 964.7685179
R31: 29 | S31: 963.1079869
R33: =H17 -> 561 | S33: ft. above sea lev.
R34: =H18 -> 80 | S34: degrees F
